Workbook

Sheet Index
A1: Place of death: rolling 12-month report
A3: Index
A6: This tool contains the following worksheets:
B7: Worksheet | D7: Description | R7: Time frame
B9: Overview | D9: Overview, notes and further sources of data. | R9: 2006 - 2017
B12: Place of death calculator | D12: Interactive tool designed to help CCGs develop targets for reducing the number of deaths in a hospital setting. | R12: January 1st 2017 to December 31st 2017
B15: Place of death | D15: CCG and practice breakdown of mortality by place of death settings. These are grouped by hospital, care home, home, hospice and 'other'. | R15: April 1st 2017 - March 31st 2018
D16: The 'other' grouping includes those deaths that have occurred in work places and public spaces.
B18: Annual trend lines | D18: CCG-level trend lines show how the proportion of deaths across the grouped settings have changed over time. | R18: January 1st 2006 - December 31st 2017
B21: Usual place of residence | D21: CCG and practice breakdown of mortality, showing the proportion of deaths recorded as having occurred in the individual's usual place of residence | R21: April 1st 2017 - March 31st 2018
B24: QOF palliative care | D24: CCG and practice-level detailed analysis of the palliative care register | R24: 2009/10 - 2017/18

Sheet Overview
A1: Place of death: rolling 12-month report - overview
A3: 1st April 2017 - 31st March 2018
A5: Over the past 12 years Lancashire GPs and their partners from across the care spectrum have been successful in significantly reducing the number of deaths recorded in a hospital setting from 55% in 2006 to 44% in 2017. The large increase in the proportion of deaths recorded in either a home or a care home setting is the main driving factor behind this.
A32: The National Survey of Bereaved People (VOICES) analysed by the Office for National Statistics, asks respondents about the end of life care their family member or friend received in their last three months. Findings from the 2015 VOICES survey (published 2016) support other research findings that dying at home is the most common preference. Respondents were asked if the patient had expressed a preference for where they would like to die and asked to state where this was (for instance, at home, in a hospice etc.). The majority believed the deceased had wanted to die at home (81%), 8% said they wanted to die in a hospice, 7% in a care home, 3% in hospital and 1% somewhere else.
A37: Click here for further details
A39: In 2016 the Royal College of Physicians (RCP) in conjunction with Marie Curie published the 'End of Life Care Audit - Dying in Hospital, national report for England'. The main findings highlighted improvements across a number of area, but some providers were failing to provide adequate 24/7 palliative care, with evening and weekend provision being of concern.
A42: Click here for further details
A44: Please see Public Health England's End of Life tool for further detailed analysis
A45: PHE: End of life tool
A47: Produced by Public Health Intelligence
A49: * Every effort is made to ensure that an accurate picture of home deaths is presented, this methodology is susceptible to coding practices and could result in some deaths being incorrectly coded as a home death.
A51: Between December 1st 2014 and November 30th 2015, fewer than 1% of deaths identified as having occurred in a home setting and 35% of those identified as having occurred in a care home setting had a usual place of residence address that did not exactly match the place of death address. It is without doubt that some of these deaths will not have occurred within a home setting, but it is felt that in the majority of cases there will simply be a slight difference in how the addresses were recorded. For example: '2 North Street, Preston, Lancashire' and '2 North Street, Preston, PR1 1AA'. Whilst we will continue to work on improving our local reporting systems, until changes are made at a national level, we will not be able to attain 100% accuracy.
A56: Source of data: August 2018 Primary Care Mortality Database (PCMD) from NHS Digital

Sheet Place of death calculator
A1: Place of death calculator (2017)
A4: This calculator has been developed to help CCGs develop targets for reducing the number of deaths in a hospital setting. To use the tool: (1) select the CCG you are interested in. (2) in the '% increase target' cells (marked yellow below) set a target for the chosen setting(s). This will adjust the corresponding cells to show the actual number of deaths required in the selected setting to meet the target. For example, if you enter 10% in the 'home' setting for NHS Chorley and South Ribble CCG, this would mean an additional 38 deaths need to have occurred at home to meet the target. We have also provided the actual increase required per practice, but please note, the size of each individual practice varies and it may not be appropriate to apply this figure to very large or very small practices. (3) the next table shows the predicted number of deaths in a hospital, based on the targets and the actual deaths in hospital (2017), it then works out the percentage reduction between the two values if the targets are achieved. (4) the predicted place of death table shows the values and percentage of total deaths by each setting, again, based on the targets set in table 2. The final table is the actual number of deaths by setting for each of the CCGs.
A8: 1 | C8: << Select CCG
B11: NHS Chorley and South Ribble CCG
A12: 2 | B12: Place of death calculator
B13: Setting | C13: % increase target | D13: Actual increase required | E13: Actual increase per practice
B14: Home | C14: 0.1 | D14: =SUM(IF($B$26:$B$31=$B$11,C26:C31,""))-SUM(IF($B$35:$B$40=$B$11,C35:C40,"")) -> 38.22222222 | E14: =D14/(COUNTIF('Place of death by practice'!$B$2:$B$179,'Place of death calculator'!$B$11)) -> 1.23297491
B15: Care home | C15: 0 | D15: =SUM(IF($B$26:$B$31=$B$11,E26:E31,""))-SUM(IF($B$35:$B$40=$B$11,D35:D40,"")) -> 0 | E15: =D15/(COUNTIF('Place of death by practice'!$B$2:$B$179,'Place of death calculator'!$B$11)) -> 0
B16: Hospice | C16: 0 | D16: =SUM(IF($B$26:$B$31=$B$11,G26:G31,""))-SUM(IF($B$35:$B$40=$B$11,E35:E40,"")) -> 0 | E16: =D16/(COUNTIF('Place of death by practice'!$B$2:$B$179,'Place of death calculator'!$B$11)) -> 0
A18: 3 | B18: Percentage reduction of hospital deaths if target achieved
B19: Value | D19: Decrease | E19: % reduction
B20: Hospital (predicted) | D20: =D21-SUM(D14:D16) -> 775.7777778 | E20: =(D20-D21)/ABS(D21) -> -0.04695604696
B21: Hospital (actual value 2017) | D21: =SUM(IF(B35:B40=B11,F35:F40,"")) -> 814
A24: 4 | B24: Predicted place of death, by CCG
B25: CCG | C25: Home | D25: % of total | E25: Care home | F25: % of total | G25: Hospice | H25: % of total | I25: Hospital | J25: % of total | K25: Grand Total
B26: NHS Chorley and South Ribble CCG | C26: =IF($B$11=B26,$C35/(1-$C$14),$C35) -> 382.2222222 | D26: =C26/H35 -> 0.2222222222 | E26: =IF($B$11=B26,$D35/(1-$C$15),$D35) -> 398 | F26: =E26/H35 -> 0.2313953488 | G26: =IF($B$11=B26,$E35/(1-$C$16),$E35) -> 139 | H26: =G26/H35 -> 0.08081395349 | I26: =IF($B26=$B$11,$D$20,$F35) -> 775.7777778 | J26: =I26/H35 -> 0.4510335917 | K26: =I26+G26+E26+C26 -> 1695
B27: NHS East Lancashire CCG | C27: 864 | D27: =C27/H36 -> 0.2390041494 | E27: 836 | F27: =E27/H36 -> 0.2312586445 | G27: 172 | H27: =G27/H36 -> 0.04757952974 | I27: =IF($B27=$B$11,$D$20,$F36) -> 1679 | J27: =I27/H36 -> 0.4644536653 | K27: 3551
B28: NHS Fylde & Wyre CCG | C28: 618 | D28: =C28/H37 -> 0.27176781 | E28: 507 | F28: =E28/H37 -> 0.2229551451 | G28: 133 | H28: =G28/H37 -> 0.05848724714 | I28: =IF($B28=$B$11,$D$20,$F37) -> 983 | J28: =I28/H37 -> 0.4322779244 | K28: 2241
B29: NHS Greater Preston CCG | C29: 363 | D29: =C29/H38 -> 0.2048532731 | E29: 398 | F29: =E29/H38 -> 0.2246049661 | G29: 132 | H29: =G29/H38 -> 0.07449209932 | I29: =IF($B29=$B$11,$D$20,$F38) -> 846 | J29: =I29/H38 -> 0.4774266366 | K29: 1739
B30: NHS Morecambe Bay CCG | C30: 938 | D30: =C30/H39 -> 0.2690763052 | E30: 893 | F30: =E30/H39 -> 0.2561675273 | G30: 208 | H30: =G30/H39 -> 0.05966724039 | I30: =IF($B30=$B$11,$D$20,$F39) -> 1368 | J30: =I30/H39 -> 0.3924268503 | K30: 3407
B31: NHS West Lancashire CCG | C31: 319 | D31: =C31/H40 -> 0.2726495726 | E31: 297 | F31: =E31/H40 -> 0.2538461538 | G31: 38 | H31: =G31/H40 -> 0.03247863248 | I31: =IF($B31=$B$11,$D$20,$F40) -> 498 | J31: =I31/H40 -> 0.4256410256 | K31: 1152
B33: Actual place of death by CCG, 2017
B34: Registered CCG | C34: Home | D34: Care home | E34: Hospice | F34: Hospital | G34: Elsewhere and other places | H34: Grand total
B35: NHS Chorley and South Ribble CCG | C35: 344 | D35: 398 | E35: 139 | F35: 814 | G35: 25 | H35: =SUM(C35:G35) -> 1720
B36: NHS East Lancashire CCG | C36: 864 | D36: 836 | E36: 172 | F36: 1679 | G36: 64 | H36: =SUM(C36:G36) -> 3615
B37: NHS Fylde & Wyre CCG | C37: 618 | D37: 507 | E37: 133 | F37: 983 | G37: 33 | H37: =SUM(C37:G37) -> 2274
B38: NHS Greater Preston CCG | C38: 363 | D38: 398 | E38: 132 | F38: 846 | G38: 33 | H38: =SUM(C38:G38) -> 1772
B39: NHS Morecambe Bay CCG | C39: 938 | D39: 893 | E39: 208 | F39: 1368 | G39: 79 | H39: =SUM(C39:G39) -> 3486
B40: NHS West Lancashire CCG | C40: 319 | D40: 297 | E40: 38 | F40: 498 | G40: 18 | H40: =SUM(C40:G40) -> 1170
B41: Grand total | C41: 3446 | D41: 3329 | E41: 822 | F41: 6188 | G41: 255 | H41: =SUM(H35:H40) -> 14037
B43: Note: whilst this is based on historic data, the number of deaths recorded each year remains fairly consistent, for example across all six CCGs there were 11,400 deaths in 2014 and 11,382 in 2015.
B55: Source of data: August 2018 PCMD received from NHS Digital

Sheet Place of death
A1: Place of death: clinical commissioning group rolling 12-month report, 1st April 2017 - 31st March 2018
A5: During the 12-month period 1st April 2017 to 31st March 2018:
A6: ● Patients registered to the six CCGs in the Lancashire county area were more likely to die in either a home (24%) or care home (25%) than a hospital setting (44%).
A7: ● A statistically significantly larger proportion of patients in the NHS Chorley and South Ribble CCG area died in a hospital setting (48%) compared to the combined area average (44%). NHS Morecambe Bay CCG (39%) recorded a significantly smaller proportion of deaths in a hospital setting.
A8: ● NHS Morecambe Bay CCG recorded a significantly larger proportion of deaths in a care home setting (27%) than the combined average (25%), while NHS Chorley and South Ribble CCG (21%) and NHS Greater Preston CCG (22%) recorded a significantly smaller proportion.
A10: ● NHS Morecambe Bay CCG recorded a significantly larger proportion of deaths in a home setting (26%) than the combined average (24%).
A11: ● NHS Chorley and South Ribble CCG (8%) and NHS Greater Preston CCG (8%) both recorded a significantly larger proportion of deaths in a hospice setting than the laverage (6%). NHS East Lancashire CCG (4%) and NHS West Lancashire CCG (3%) recorded a significantly smaller proportion.
L17: Between 1st April 2017 and 31st March 2018 a total of 14,320 deaths were recorded amongst patients registered with one of the six Lancashire county CCGs; of these:
L21: • 44% died in a hospital setting;
L22: • 25% in a care home;
L23: • 24% in a 'home' setting; and
L24: • 6% in a hospice.
L25: The remainder of deaths were recorded as having occurred in 'other' settings.
B31: Source of data: August 2018 PCMD received from NHS Digital
A34: Place of death: practice breakdown rolling 12-month period, 1st April 2017 - 31st March 2017
B37: Registered CCG: | C37: NHS Chorley and South Ribble CCG | D37: << Select CCG
C39: Values
B40: Registered Practice | C40: Hospital | D40: Care home | E40: Home | F40: Hospice | G40: Other
B41: P81180:CLAYTON BROOK SURGERY | C41: 0.24 | D41: 0.42 | E41: 0.24 | F41: 0.06 | G41: 0.04
B42: P81733:ECCLESTON HEALTH CENTRE | C42: 0.25 | D42: 0.3333333333 | E42: 0.25 | F42: 0.1666666667 | G42: 0
B43: P81689:EAVES LANE SURGERY | C43: 0.2941176471 | D43: 0.1176470588 | E43: 0.4705882353 | F43: 0.1176470588 | G43: 0
B44: P81127:THE SURGERY CHORLEY | C44: 0.3703703704 | D44: 0.2222222222 | E44: 0.2962962963 | F44: 0.1111111111 | G44: 0
B45: P81740:ADLINGTON MEDICAL CENTRE | C45: 0.375 | D45: 0.4375 | E45: 0.125 | F45: 0.0625 | G45: 0
B46: P81033:COPPULL MEDICAL PRACTICE | C46: 0.3902439024 | D46: 0.3089430894 | E46: 0.243902439 | F46: 0.05691056911 | G46: 0
B47: Y00347:DR R BAGHDJIAN SURGERY | C47: 0.3913043478 | D47: 0.1956521739 | E47: 0.347826087 | F47: 0.0652173913 | G47: 0
B48: P81655:THE VILLAGE SURGERIES CROSTON&ECCLESTON | C48: 0.4027777778 | D48: 0.4027777778 | E48: 0.1944444444 | F48: 0 | G48: 0
B49: P81062:REGENT HOUSE SURGERY | C49: 0.4047619048 | D49: 0.1785714286 | E49: 0.2976190476 | F49: 0.1071428571 | G49: 0.0119047619
B50: P81038:THE CHORLEY SURGERY | C50: 0.4303797468 | D50: 0.1392405063 | E50: 0.3291139241 | F50: 0.08860759494 | G50: 0.01265822785
B51: P81154:GRANVILLE HOUSE MED CTRE | C51: 0.431372549 | D51: 0.2647058824 | E51: 0.2254901961 | F51: 0.06862745098 | G51: 0.009803921569
B52: P81687:NEW LONGTON SURGERY | C52: 0.4347826087 | D52: 0.3043478261 | E52: 0.1739130435 | F52: 0.04347826087 | G52: 0.04347826087
B53: P81741:STATION SURGERY | C53: 0.4375 | D53: 0.0625 | E53: 0.375 | F53: 0.125 | G53: 0
B54: P81642:MEDICARE UNIT SURGERY | C54: 0.4545454545 | D54: 0.04545454545 | E54: 0.2727272727 | F54: 0.2272727273 | G54: 0
B55: Y03656:LEYLAND SURGERY | C55: 0.462962963 | D55: 0.1296296296 | E55: 0.2407407407 | F55: 0.1481481481 | G55: 0.01851851852
B56: P81076:SANDY LANE SURGERY | C56: 0.4653465347 | D56: 0.1683168317 | E56: 0.2277227723 | F56: 0.1188118812 | G56: 0.0198019802
B57: P81044:LIBRARY HOUSE SURGERY | C57: 0.4851485149 | D57: 0.2673267327 | E57: 0.1881188119 | F57: 0.0396039604 | G57: 0.0198019802
B58: P81701:PRESTON ROAD SURGERY | C58: 0.4857142857 | D58: 0.2 | E58: 0.1714285714 | F58: 0.1428571429 | G58: 0
B59: P81082:THE RYAN MEDICAL CENTRE | C59: 0.5104166667 | D59: 0.2083333333 | E59: 0.1979166667 | F59: 0.0625 | G59: 0.02083333333
B60: P81117:CENTRAL PARK SURGERY | C60: 0.5142857143 | D60: 0.1142857143 | E60: 0.2857142857 | F60: 0.05714285714 | G60: 0.02857142857
B61: Y02466:BUCKSHAW VILLAGE HEALTH CENTRE | C61: 0.5185185185 | D61: 0.2592592593 | E61: 0.09259259259 | F61: 0.1296296296 | G61: 0
B62: P81143:WHITTLE SURGERY | C62: 0.5185185185 | D62: 0.0987654321 | E62: 0.2469135802 | F62: 0.1111111111 | G62: 0.02469135802
B63: P81083:ROSLEA SURGERY | C63: 0.528 | D63: 0.232 | E63: 0.184 | F63: 0.04 | G63: 0.016
B64: P81692:BEECHES MEDICAL CENTRE | C64: 0.5333333333 | D64: 0.2333333333 | E64: 0.1333333333 | F64: 0.06666666667 | G64: 0.03333333333
B65: P81181:KINGSFOLD MEDICAL CENTRE | C65: 0.5666666667 | D65: 0.06666666667 | E65: 0.1666666667 | F65: 0.1666666667 | G65: 0.03333333333
B66: P81057:WORDEN MEDICAL CENTRE | C66: 0.6 | D66: 0.06956521739 | E66: 0.2608695652 | F66: 0.05217391304 | G66: 0.01739130435
B67: P81173:CROSTON MEDICAL CENTRE | C67: 0.6111111111 | D67: 0.1944444444 | E67: 0.1944444444 | F67: 0 | G67: 0
B68: P81171:THE EUXTON MEDICAL CENTRE | C68: 0.6153846154 | D68: 0.1153846154 | E68: 0.1538461538 | F68: 0.1153846154 | G68: 0
B69: P81186:MOSS SIDE MEDICAL CENTRE | C69: 0.6363636364 | D69: 0.1212121212 | E69: 0.1212121212 | F69: 0.09090909091 | G69: 0.0303030303
B70: P81769:LOSTOCK HALL VILLAGE SURGERY | C70: 0.6666666667 | D70: 0 | E70: 0.1666666667 | F70: 0.1666666667 | G70: 0
B71: P81010:WITHNELL HEALTH CENTRE | C71: 0.6956521739 | D71: 0 | E71: 0.2173913043 | F71: 0.04347826087 | G71: 0.04347826087
B200: =B37 & " " &C37 -> Registered CCG: NHS Chorley and South Ribble CCG
A259: Please note that these are crude rate comparisons that do not take into account confounding factors such as population demographics (age/gender). Additionally these rates only take into account a small time frame.
A260: Total = total deaths relating to persons registered to one of the six Lancashire area CCGs.
A261: Home deaths refer to those deaths which have occurred in a private dwelling.
A262: Other deaths, refer to those deaths which have occurred outside of the four defined settings and include deaths in the work place and deaths in public places.

Sheet Place of death by practice (hidden)
A1: Registered Practice | B1: Registered CCG | C1: Hospital | D1: Care home | E1: Home | F1: Hospice | G1: Other
A2: P81010:WITHNELL HEALTH CENTRE | B2: NHS Chorley and South Ribble CCG | C2: 0.6956521739 | D2: 0 | E2: 0.2173913043 | F2: 0.04347826087 | G2: 0.04347826087
A3: P81033:COPPULL MEDICAL PRACTICE | B3: NHS Chorley and South Ribble CCG | C3: 0.3902439024 | D3: 0.3089430894 | E3: 0.243902439 | F3: 0.05691056911 | G3: 0
A4: P81038:THE CHORLEY SURGERY | B4: NHS Chorley and South Ribble CCG | C4: 0.4303797468 | D4: 0.1392405063 | E4: 0.3291139241 | F4: 0.08860759494 | G4: 0.01265822785
A5: P81044:LIBRARY HOUSE SURGERY | B5: NHS Chorley and South Ribble CCG | C5: 0.4851485149 | D5: 0.2673267327 | E5: 0.1881188119 | F5: 0.0396039604 | G5: 0.0198019802
A6: P81057:WORDEN MEDICAL CENTRE | B6: NHS Chorley and South Ribble CCG | C6: 0.6 | D6: 0.06956521739 | E6: 0.2608695652 | F6: 0.05217391304 | G6: 0.01739130435
A7: P81062:REGENT HOUSE SURGERY | B7: NHS Chorley and South Ribble CCG | C7: 0.4047619048 | D7: 0.1785714286 | E7: 0.2976190476 | F7: 0.1071428571 | G7: 0.0119047619
A8: P81076:SANDY LANE SURGERY | B8: NHS Chorley and South Ribble CCG | C8: 0.4653465347 | D8: 0.1683168317 | E8: 0.2277227723 | F8: 0.1188118812 | G8: 0.0198019802
A9: P81082:THE RYAN MEDICAL CENTRE | B9: NHS Chorley and South Ribble CCG | C9: 0.5104166667 | D9: 0.2083333333 | E9: 0.1979166667 | F9: 0.0625 | G9: 0.02083333333
A10: P81083:ROSLEA SURGERY | B10: NHS Chorley and South Ribble CCG | C10: 0.528 | D10: 0.232 | E10: 0.184 | F10: 0.04 | G10: 0.016
A11: P81117:CENTRAL PARK SURGERY | B11: NHS Chorley and South Ribble CCG | C11: 0.5142857143 | D11: 0.1142857143 | E11: 0.2857142857 | F11: 0.05714285714 | G11: 0.02857142857
A12: P81127:THE SURGERY CHORLEY | B12: NHS Chorley and South Ribble CCG | C12: 0.3703703704 | D12: 0.2222222222 | E12: 0.2962962963 | F12: 0.1111111111 | G12: 0
A13: P81143:WHITTLE SURGERY | B13: NHS Chorley and South Ribble CCG | C13: 0.5185185185 | D13: 0.0987654321 | E13: 0.2469135802 | F13: 0.1111111111 | G13: 0.02469135802
A14: P81154:GRANVILLE HOUSE MED CTRE | B14: NHS Chorley and South Ribble CCG | C14: 0.431372549 | D14: 0.2647058824 | E14: 0.2254901961 | F14: 0.06862745098 | G14: 0.009803921569
A15: P81171:THE EUXTON MEDICAL CENTRE | B15: NHS Chorley and South Ribble CCG | C15: 0.6153846154 | D15: 0.1153846154 | E15: 0.1538461538 | F15: 0.1153846154 | G15: 0
A16: P81173:CROSTON MEDICAL CENTRE | B16: NHS Chorley and South Ribble CCG | C16: 0.6111111111 | D16: 0.1944444444 | E16: 0.1944444444 | F16: 0 | G16: 0
A17: P81180:CLAYTON BROOK SURGERY | B17: NHS Chorley and South Ribble CCG | C17: 0.24 | D17: 0.42 | E17: 0.24 | F17: 0.06 | G17: 0.04
A18: P81181:KINGSFOLD MEDICAL CENTRE | B18: NHS Chorley and South Ribble CCG | C18: 0.5666666667 | D18: 0.06666666667 | E18: 0.1666666667 | F18: 0.1666666667 | G18: 0.03333333333
A19: P81186:MOSS SIDE MEDICAL CENTRE | B19: NHS Chorley and South Ribble CCG | C19: 0.6363636364 | D19: 0.1212121212 | E19: 0.1212121212 | F19: 0.09090909091 | G19: 0.0303030303
A20: P81642:MEDICARE UNIT SURGERY | B20: NHS Chorley and South Ribble CCG | C20: 0.4545454545 | D20: 0.04545454545 | E20: 0.2727272727 | F20: 0.2272727273 | G20: 0
A21: P81655:THE VILLAGE SURGERIES CROSTON&ECCLESTON | B21: NHS Chorley and South Ribble CCG | C21: 0.4027777778 | D21: 0.4027777778 | E21: 0.1944444444 | F21: 0 | G21: 0
A22: P81687:NEW LONGTON SURGERY | B22: NHS Chorley and South Ribble CCG | C22: 0.4347826087 | D22: 0.3043478261 | E22: 0.1739130435 | F22: 0.04347826087 | G22: 0.04347826087
A23: P81689:EAVES LANE SURGERY | B23: NHS Chorley and South Ribble CCG | C23: 0.2941176471 | D23: 0.1176470588 | E23: 0.4705882353 | F23: 0.1176470588 | G23: 0
A24: P81692:BEECHES MEDICAL CENTRE | B24: NHS Chorley and South Ribble CCG | C24: 0.5333333333 | D24: 0.2333333333 | E24: 0.1333333333 | F24: 0.06666666667 | G24: 0.03333333333
A25: P81701:PRESTON ROAD SURGERY | B25: NHS Chorley and South Ribble CCG | C25: 0.4857142857 | D25: 0.2 | E25: 0.1714285714 | F25: 0.1428571429 | G25: 0
A26: P81733:ECCLESTON HEALTH CENTRE | B26: NHS Chorley and South Ribble CCG | C26: 0.25 | D26: 0.3333333333 | E26: 0.25 | F26: 0.1666666667 | G26: 0
A27: P81740:ADLINGTON MEDICAL CENTRE | B27: NHS Chorley and South Ribble CCG | C27: 0.375 | D27: 0.4375 | E27: 0.125 | F27: 0.0625 | G27: 0
A28: P81741:STATION SURGERY | B28: NHS Chorley and South Ribble CCG | C28: 0.4375 | D28: 0.0625 | E28: 0.375 | F28: 0.125 | G28: 0
A29: P81769:LOSTOCK HALL VILLAGE SURGERY | B29: NHS Chorley and South Ribble CCG | C29: 0.6666666667 | D29: 0 | E29: 0.1666666667 | F29: 0.1666666667 | G29: 0
A30: Y00347:DR R BAGHDJIAN SURGERY | B30: NHS Chorley and South Ribble CCG | C30: 0.3913043478 | D30: 0.1956521739 | E30: 0.347826087 | F30: 0.0652173913 | G30: 0
A31: Y02466:BUCKSHAW VILLAGE HEALTH CENTRE | B31: NHS Chorley and South Ribble CCG | C31: 0.5185185185 | D31: 0.2592592593 | E31: 0.09259259259 | F31: 0.1296296296 | G31: 0
A32: Y03656:LEYLAND SURGERY | B32: NHS Chorley and South Ribble CCG | C32: 0.462962963 | D32: 0.1296296296 | E32: 0.2407407407 | F32: 0.1481481481 | G32: 0.01851851852
A33: P81003:ST JAMES' MEDICAL CENTRE | B33: NHS East Lancashire CCG | C33: 0.5238095238 | D33: 0.2 | E33: 0.2380952381 | F33: 0.01904761905 | G33: 0.01904761905
A34: P81008:YORKSHIRE STREET MEDICAL CENTRE | B34: NHS East Lancashire CCG | C34: 0.3773584906 | D34: 0.2264150943 | E34: 0.3396226415 | F34: 0.03773584906 | G34: 0.01886792453
A35: P81017:WHALLEY MEDICAL CENTRE | B35: NHS East Lancashire CCG | C35: 0.6436781609 | D35: 0.08045977011 | E35: 0.2298850575 | F35: 0.02298850575 | G35: 0.02298850575
A36: P81020:ST. NICHOLAS GROUP PRACTICE | B36: NHS East Lancashire CCG | C36: 0.5368421053 | D36: 0.1473684211 | E36: 0.2736842105 | F36: 0.04210526316 | G36: 0
A37: P81025:THE RICHMOND HILL PRACTICE | B37: NHS East Lancashire CCG | C37: 0.4561403509 | D37: 0.2368421053 | E37: 0.2719298246 | F37: 0.01754385965 | G37: 0.01754385965
A38: P81027:IRWELL MEDICAL PRACTICE | B38: NHS East Lancashire CCG | C38: 0.4846153846 | D38: 0.1692307692 | E38: 0.2307692308 | F38: 0.1 | G38: 0.01538461538
A39: P81028:MANCHESTER ROAD SURGERY | B39: NHS East Lancashire CCG | C39: 0.4693877551 | D39: 0.3265306122 | E39: 0.1632653061 | F39: 0.02040816327 | G39: 0.02040816327
A40: P81032:REEDYFORD HLTH CARE GROUP | B40: NHS East Lancashire CCG | C40: 0.5 | D40: 0.2777777778 | E40: 0.1746031746 | F40: 0.03968253968 | G40: 0.007936507937
A41: P81035:COLNE ROAD SURGERY | B41: NHS East Lancashire CCG | C41: 0.6666666667 | D41: 0.1388888889 | E41: 0.1666666667 | F41: 0 | G41: 0.02777777778
A42: P81036:PEEL HOUSE MEDICAL PRACTICE | B42: NHS East Lancashire CCG | C42: 0.3406113537 | D42: 0.4017467249 | E42: 0.192139738 | F42: 0.0480349345 | G42: 0.01746724891
A43: P81047:PARKSIDE SURGERY | B43: NHS East Lancashire CCG | C43: 0.4651162791 | D43: 0.3255813953 | E43: 0.1860465116 | F43: 0.01550387597 | G43: 0.007751937984
A44: P81053:BRIERCLIFFE SURGERY | B44: NHS East Lancashire CCG | C44: 0.4606741573 | D44: 0.2247191011 | E44: 0.2584269663 | F44: 0.05617977528 | G44: 0
A45: P81065:THE PENDLE MEDICAL PARTNERSHIP | B45: NHS East Lancashire CCG | C45: 0.3120567376 | D45: 0.3404255319 | E45: 0.2765957447 | F45: 0.04964539007 | G45: 0.02127659574
A46: P81069:PENDLESIDE MEDICAL PRACT | B46: NHS East Lancashire CCG | C46: 0.4453125 | D46: 0.3359375 | E46: 0.1875 | F46: 0.015625 | G46: 0.015625
A47: P81070:PENDLE VIEW MEDICAL CTRE | B47: NHS East Lancashire CCG | C47: 0.4329896907 | D47: 0.3092783505 | E47: 0.2164948454 | F47: 0.0206185567 | G47: 0.0206185567
A48: P81078:BARNOLDSWICK MED CTR | B48: NHS East Lancashire CCG | C48: 0.4594594595 | D48: 0.1351351351 | E48: 0.2972972973 | F48: 0.07207207207 | G48: 0.03603603604
A49: P81088:WHITWORTH MEDICAL CENTRE | B49: NHS East Lancashire CCG | C49: 0.4772727273 | D49: 0.1136363636 | E49: 0.3181818182 | F49: 0.06818181818 | G49: 0.02272727273
A50: P81095:THURSBY SURGERY | B50: NHS East Lancashire CCG | C50: 0.5151515152 | D50: 0.2727272727 | E50: 0.1363636364 | F50: 0.04545454545 | G50: 0.0303030303
A51: P81099:DR THM MACKENZIE & PARTNERS | B51: NHS East Lancashire CCG | C51: 0.4692307692 | D51: 0.3538461538 | E51: 0.1230769231 | F51: 0.04615384615 | G51: 0.007692307692
A52: P81100:THE CASTLE MEDICAL GROUP | B52: NHS East Lancashire CCG | C52: 0.5037593985 | D52: 0.1729323308 | E52: 0.2556390977 | F52: 0.05263157895 | G52: 0.01503759398
A53: P81104:OXFORD ROAD MEDICAL CTRE | B53: NHS East Lancashire CCG | C53: 0.4047619048 | D53: 0.2857142857 | E53: 0.2380952381 | F53: 0.07142857143 | G53: 0
A54: P81118:ILEX VIEW MEDICAL PRACTICE | B54: NHS East Lancashire CCG | C54: 0.3835616438 | D54: 0.3698630137 | E54: 0.1643835616 | F54: 0.04109589041 | G54: 0.04109589041
A55: P81123:ELMS FEDERATED PRACTICE | B55: NHS East Lancashire CCG | C55: 0.3986013986 | D55: 0.2727272727 | E55: 0.2727272727 | F55: 0.03496503497 | G55: 0.02097902098
A56: P81130:PADIHAM GROUP PRACTICE | B56: NHS East Lancashire CCG | C56: 0.5422535211 | D56: 0.2394366197 | E56: 0.161971831 | F56: 0.04225352113 | G56: 0.01408450704
A57: P81132:DR DM DOHERTY & PARTNERS | B57: NHS East Lancashire CCG | C57: 0.4078947368 | D57: 0.2105263158 | E57: 0.3289473684 | F57: 0.03947368421 | G57: 0.01315789474
A58: P81134:KIDDROW MEDICAL PRACTICE | B58: NHS East Lancashire CCG | C58: 0.4324324324 | D58: 0.1351351351 | E58: 0.3513513514 | F58: 0 | G58: 0.08108108108
A59: P81137:BURNLEY WOOD MEDICAL CENTRE | B59: NHS East Lancashire CCG | C59: 0.4385964912 | D59: 0.2105263158 | E59: 0.2807017544 | F59: 0.05263157895 | G59: 0.01754385965
A60: P81146:MYRTLE HOUSE | B60: NHS East Lancashire CCG | C60: 0.4705882353 | D60: 0.3529411765 | E60: 0.1176470588 | F60: 0.03921568627 | G60: 0.01960784314
A61: P81147:BLACKBURN RD MEDICAL CENTRE | B61: NHS East Lancashire CCG | C61: 0.4285714286 | D61: 0.3333333333 | E61: 0.2142857143 | F61: 0 | G61: 0.02380952381
A62: P81160:OSWALD MEDICAL CENTRE | B62: NHS East Lancashire CCG | C62: 0.4761904762 | D62: 0.1904761905 | E62: 0.2857142857 | F62: 0.02380952381 | G62: 0.02380952381
A63: P81165:IGHTENHILL MEDICAL CENTRE | B63: NHS East Lancashire CCG | C63: 0.6086956522 | D63: 0.1739130435 | E63: 0.2173913043 | F63: 0 | G63: 0
A64: P81166:DR BELLO'S SURGERY | B64: NHS East Lancashire CCG | C64: 0.4375 | D64: 0.25 | E64: 0.3125 | F64: 0 | G64: 0
A65: P81170:DR MALIK & PARTNER | B65: NHS East Lancashire CCG | C65: 0.5172413793 | D65: 0.1034482759 | E65: 0.3448275862 | F65: 0.03448275862 | G65: 0
A66: P81182:RICHMOND MEDICAL CENTRE | B66: NHS East Lancashire CCG | C66: 0.5714285714 | D66: 0.09523809524 | E66: 0.3333333333 | F66: 0 | G66: 0
A67: P81197:ROSEGROVE SURGERY | B67: NHS East Lancashire CCG | C67: 0.4705882353 | D67: 0.2352941176 | E67: 0.2058823529 | F67: 0.05882352941 | G67: 0.02941176471
A68: P81212:DR MOUJAES | B68: NHS East Lancashire CCG | C68: 0.512195122 | D68: 0.1707317073 | E68: 0.243902439 | F68: 0.0487804878 | G68: 0.0243902439
A69: P81215:ROSEHILL SURGERY | B69: NHS East Lancashire CCG | C69: 0.609375 | D69: 0.125 | E69: 0.234375 | F69: 0.03125 | G69: 0
A70: P81218:THE CLAYTON MEDICAL CTR. | B70: NHS East Lancashire CCG | C70: 0.3883495146 | D70: 0.3980582524 | E70: 0.1844660194 | F70: 0.02912621359 | G70: 0
A71: P81620:SLAIDBURN HEALTH CENTRE | B71: NHS East Lancashire CCG | C71: 1 | D71: 0 | E71: 0 | F71: 0 | G71: 0
A72: P81659:THE ROYLE | B72: NHS East Lancashire CCG | C72: 0.4285714286 | D72: 0.1785714286 | E72: 0.2142857143 | F72: 0.1785714286 | G72: 0
A73: P81686:ROSSENDALE VALLEY MEDICAL PRACTICE | B73: NHS East Lancashire CCG | C73: 0.5263157895 | D73: 0.1052631579 | E73: 0.2631578947 | F73: 0.05263157895 | G73: 0.05263157895
A74: P81699:HIGHER HEYS SURGERY | B74: NHS East Lancashire CCG | C74: 0.4 | D74: 0.45 | E74: 0.1 | F74: 0.05 | G74: 0
A75: P81711:DILL HALL SURGERY | B75: NHS East Lancashire CCG | C75: 0.3 | D75: 0.45 | E75: 0.15 | F75: 0.05 | G75: 0.05
A76: P81726:KING STREET MEDICAL CTR | B76: NHS East Lancashire CCG | C76: 0.6666666667 | D76: 0 | E76: 0.2666666667 | F76: 0.06666666667 | G76: 0
A77: P81730:GREAT HARWOOD MEDICAL GROUP | B77: NHS East Lancashire CCG | C77: 0.4935064935 | D77: 0.1428571429 | E77: 0.2597402597 | F77: 0.05194805195 | G77: 0.05194805195
A78: P81731:DR JEHANGIR (SH) | B78: NHS East Lancashire CCG | C78: 0.4545454545 | D78: 0.2727272727 | E78: 0.1818181818 | F78: 0.04545454545 | G78: 0.04545454545
A79: P81732:HARAMBEE SURGERY | B79: NHS East Lancashire CCG | C79: 0.4705882353 | D79: 0.3235294118 | E79: 0.1764705882 | F79: 0.02941176471 | G79: 0
A80: P81736:WHITEFIELD HEALTHCARE | B80: NHS East Lancashire CCG | C80: 0.7692307692 | D80: 0 | E80: 0.2307692308 | F80: 0 | G80: 0
A81: P81738:RISHTON & GREAT HARWOOD SURGERY | B81: NHS East Lancashire CCG | C81: 0.1818181818 | D81: 0.1818181818 | E81: 0.4545454545 | F81: 0.09090909091 | G81: 0.09090909091
A82: P81749:ABBEY SURGERY | B82: NHS East Lancashire CCG | C82: 0.3636363636 | D82: 0.09090909091 | E82: 0.5454545455 | F82: 0 | G82: 0
A83: P81755:CABIN SURGERY | B83: NHS East Lancashire CCG | C83: 0.5454545455 | D83: 0.06818181818 | E83: 0.2954545455 | F83: 0.09090909091 | G83: 0
A84: P81756:DANESHOUSE MEDICAL CENTRE | B84: NHS East Lancashire CCG | C84: 0.625 | D84: 0.125 | E84: 0.25 | F84: 0 | G84: 0
A85: P81757:BARROWFORD SURGERY | B85: NHS East Lancashire CCG | C85: 0.4838709677 | D85: 0.2903225806 | E85: 0.1935483871 | F85: 0.03225806452 | G85: 0
A86: P81778:DR A K JHA (SH) | B86: NHS East Lancashire CCG | C86: 0.4444444444 | D86: 0.1944444444 | E86: 0.3055555556 | F86: 0.05555555556 | G86: 0
A87: P81780:RIVERSIDE FAMILY PRACTICE | B87: NHS East Lancashire CCG | C87: 0.4375 | D87: 0.1875 | E87: 0.3125 | F87: 0 | G87: 0.0625
A88: Y02605:AVHAC REGISTERED PATIENTS | B88: NHS East Lancashire CCG | C88: 0.5625 | D88: 0.125 | E88: 0.25 | F88: 0 | G88: 0.0625
A89: Y02606:FAIRMORE MEDICAL PRACTICE | B89: NHS East Lancashire CCG | C89: 0.4230769231 | D89: 0.1153846154 | E89: 0.3076923077 | F89: 0.1153846154 | G89: 0.03846153846
A90: P81006:GARSTANG MEDICAL PRACTICE | B90: NHS Fylde & Wyre CCG | C90: 0.4285714286 | D90: 0.3085714286 | E90: 0.1885714286 | F90: 0.04 | G90: 0.03428571429
A91: P81031:POPLAR HOUSE SURGERY | B91: NHS Fylde & Wyre CCG | C91: 0.4466019417 | D91: 0.2815533981 | E91: 0.2038834951 | F91: 0.05825242718 | G91: 0.009708737864
A92: P81037:ANSDELL MEDICAL CENTRE | B92: NHS Fylde & Wyre CCG | C92: 0.3622047244 | D92: 0.3779527559 | E92: 0.1968503937 | F92: 0.04724409449 | G92: 0.0157480315
A93: P81059:GREAT ECCLESTON HLTH CTR | B93: NHS Fylde & Wyre CCG | C93: 0.3734939759 | D93: 0.2409638554 | E93: 0.2409638554 | F93: 0.1084337349 | G93: 0.03614457831
A94: P81077:HOLLAND HOUSE SURGERY | B94: NHS Fylde & Wyre CCG | C94: 0.549382716 | D94: 0.2839506173 | E94: 0.1296296296 | F94: 0.02469135802 | G94: 0.01234567901
A95: P81079:THE THORNTON PRACTICE | B95: NHS Fylde & Wyre CCG | C95: 0.4426229508 | D95: 0.1803278689 | E95: 0.2704918033 | F95: 0.09836065574 | G95: 0.008196721311
A96: P81086:BROADWAY MEDICAL CENTRE | B96: NHS Fylde & Wyre CCG | C96: 0.5491803279 | D96: 0.1639344262 | E96: 0.2540983607 | F96: 0.03278688525 | G96: 0
A97: P81087:THE OVER-WYRE MED.CTR. | B97: NHS Fylde & Wyre CCG | C97: 0.4125560538 | D97: 0.3542600897 | E97: 0.201793722 | F97: 0.0269058296 | G97: 0.004484304933
A98: P81089:THE MOUNT VIEW PRACTICE | B98: NHS Fylde & Wyre CCG | C98: 0.5 | D98: 0.2467532468 | E98: 0.1948051948 | F98: 0.04545454545 | G98: 0.01298701299
A99: P81128:KIRKHAM HEALTH CENTRE | B99: NHS Fylde & Wyre CCG | C99: 0.5319148936 | D99: 0.08510638298 | E99: 0.3191489362 | F99: 0.04255319149 | G99: 0.02127659574
A100: P81129:ASH TREE HOUSE SURGERY | B100: NHS Fylde & Wyre CCG | C100: 0.4845360825 | D100: 0.206185567 | E100: 0.206185567 | F100: 0.0824742268 | G100: 0.0206185567
A101: P81133:THE VILLAGE PRACTICE | B101: NHS Fylde & Wyre CCG | C101: 0.5 | D101: 0.1625 | E101: 0.2375 | F101: 0.0875 | G101: 0.0125
A102: P81149:LOCKWOOD GP SURGERY | B102: NHS Fylde & Wyre CCG | C102: 0.3157894737 | D102: 0.4887218045 | E102: 0.1428571429 | F102: 0.04511278195 | G102: 0.007518796992
A103: P81150:CLIFTON MEDICAL PRACTICE | B103: NHS Fylde & Wyre CCG | C103: 0.3629032258 | D103: 0.3467741935 | E103: 0.2177419355 | F103: 0.0564516129 | G103: 0.01612903226
A104: P81157:FERNBANK SURGERY | B104: NHS Fylde & Wyre CCG | C104: 0.3835616438 | D104: 0.301369863 | E104: 0.2260273973 | F104: 0.04794520548 | G104: 0.04109589041
A105: P81191:QUEENSWAY MEDICAL CENTRE | B105: NHS Fylde & Wyre CCG | C105: 0.4173228346 | D105: 0.2125984252 | E105: 0.2440944882 | F105: 0.1181102362 | G105: 0.007874015748
A106: P81210:PARK MEDICAL PRACTICE | B106: NHS Fylde & Wyre CCG | C106: 0.5656565657 | D106: 0.2222222222 | E106: 0.1515151515 | F106: 0.05050505051 | G106: 0.0101010101
A107: P81668:FLEETWOOD SURGERY | B107: NHS Fylde & Wyre CCG | C107: 0.4871794872 | D107: 0.1923076923 | E107: 0.2307692308 | F107: 0.03846153846 | G107: 0.05128205128
A108: P81737:THE OLD LINKS SURGERY | B108: NHS Fylde & Wyre CCG | C108: 0.3448275862 | D108: 0.3103448276 | E108: 0.3103448276 | F108: 0.03448275862 | G108: 0
A109: P81742:BEECHWOOD SURGERY | B109: NHS Fylde & Wyre CCG | C109: 0.55 | D109: 0.05 | E109: 0.25 | F109: 0.1 | G109: 0.05
A110: P81015:LYTHAM ROAD SURGERY | B110: NHS Greater Preston CCG | C110: 0.4285714286 | D110: 0.3095238095 | E110: 0.1984126984 | F110: 0.06349206349 | G110: 0
A111: P81018:ST FILLAN'S MEDICAL CTRE | B111: NHS Greater Preston CCG | C111: 0.5402298851 | D111: 0.1494252874 | E111: 0.2298850575 | F111: 0.06896551724 | G111: 0.01149425287
A112: P81040:LONGTON HEALTH CENTRE | B112: NHS Greater Preston CCG | C112: 0.3931623932 | D112: 0.2564102564 | E112: 0.2478632479 | F112: 0.09401709402 | G112: 0.008547008547
A113: P81046:PARK VIEW SURGERY | B113: NHS Greater Preston CCG | C113: 0.625 | D113: 0 | E113: 0.2708333333 | F113: 0.0625 | G113: 0.04166666667
A114: P81055:BERRY LANE MEDICAL CENTRE | B114: NHS Greater Preston CCG | C114: 0.3643410853 | D114: 0.3720930233 | E114: 0.1860465116 | F114: 0.04651162791 | G114: 0.03100775194
A115: P81067:THE HEALTHCARE CENTRE | B115: NHS Greater Preston CCG | C115: 0.4285714286 | D115: 0.2662337662 | E115: 0.1883116883 | F115: 0.0974025974 | G115: 0.01948051948
A116: P81071:THE NEW HALL LANE PRACTICE | B116: NHS Greater Preston CCG | C116: 0.5416666667 | D116: 0.0625 | E116: 0.3125 | F116: 0.08333333333 | G116: 0
A117: P81093:THE GEOFFREY STREET SURGERY | B117: NHS Greater Preston CCG | C117: 0.5714285714 | D117: 0.2857142857 | E117: 0.07142857143 | F117: 0.07142857143 | G117: 0
A118: P81103:NORTH PRESTON MEDICAL PRACTICE | B118: NHS Greater Preston CCG | C118: 0.5294117647 | D118: 0.1960784314 | E118: 0.1666666667 | F118: 0.09803921569 | G118: 0.009803921569
A119: P81107:STONEBRIDGE SURGERY | B119: NHS Greater Preston CCG | C119: 0.3888888889 | D119: 0.4027777778 | E119: 0.1527777778 | F119: 0.02777777778 | G119: 0.02777777778
A120: P81119:DOCLANDS MEDICAL CENTRE | B120: NHS Greater Preston CCG | C120: 0.3728813559 | D120: 0.3220338983 | E120: 0.2542372881 | F120: 0.03389830508 | G120: 0.01694915254
A121: P81152:THE SURGERY | B121: NHS Greater Preston CCG | C121: 0.5 | D121: 0.1956521739 | E121: 0.1739130435 | F121: 0.1304347826 | G121: 0
A122: P81169:FISHERGATE HILL SURGERY | B122: NHS Greater Preston CCG | C122: 0.4166666667 | D122: 0.15 | E122: 0.2833333333 | F122: 0.1 | G122: 0.05
A123: P81179:LOSTOCK HALL MEDICAL CTR. | B123: NHS Greater Preston CCG | C123: 0.53125 | D123: 0.15625 | E123: 0.1875 | F123: 0.125 | G123: 0
A124: P81184:RIBBLETON MEDICAL CENTRE | B124: NHS Greater Preston CCG | C124: 0.4626865672 | D124: 0.1194029851 | E124: 0.3731343284 | F124: 0.0447761194 | G124: 0
A125: P81185:RIVERSIDE MEDICAL CENTRE | B125: NHS Greater Preston CCG | C125: 0.3904761905 | D125: 0.3428571429 | E125: 0.180952381 | F125: 0.07619047619 | G125: 0.009523809524
A126: P81196:ISSA MEDICAL CENTRE - PATEL | B126: NHS Greater Preston CCG | C126: 0.447761194 | D126: 0.1194029851 | E126: 0.3432835821 | F126: 0.07462686567 | G126: 0.01492537313
A127: P81213:ST.MARY'S HEALTH CENTRE | B127: NHS Greater Preston CCG | C127: 0.5326086957 | D127: 0.1195652174 | E127: 0.2173913043 | F127: 0.09782608696 | G127: 0.03260869565
A128: P81647:DR JHA & DR YERRA SURGERY | B128: NHS Greater Preston CCG | C128: 0.6470588235 | D128: 0.1176470588 | E128: 0.1764705882 | F128: 0.05882352941 | G128: 0
A129: P81664:THE PARK MEDICAL PRACTICE | B129: NHS Greater Preston CCG | C129: 0.5652173913 | D129: 0.07826086957 | E129: 0.2608695652 | F129: 0.06956521739 | G129: 0.02608695652
A130: P81667:ST WALBURGE'S MEDICAL PRACTICE | B130: NHS Greater Preston CCG | C130: 0.3428571429 | D130: 0.5714285714 | E130: 0.05714285714 | F130: 0 | G130: 0.02857142857
A131: P81685:DR SZ SHAHID | B131: NHS Greater Preston CCG | C131: 0.7777777778 | D131: 0.05555555556 | E131: 0.1666666667 | F131: 0 | G131: 0
A132: P81735:DR A HUSSAIN | B132: NHS Greater Preston CCG | C132: 0.4347826087 | D132: 0.2173913043 | E132: 0.2608695652 | F132: 0.04347826087 | G132: 0.04347826087
A133: P81748:BRIARWOOD MEDICAL CENTRE | B133: NHS Greater Preston CCG | C133: 0.4545454545 | D133: 0.2363636364 | E133: 0.2 | F133: 0.09090909091 | G133: 0.01818181818
A134: P81750:FRENCHWOOD SURGERY | B134: NHS Greater Preston CCG | C134: 0.7727272727 | D134: 0 | E134: 0.1818181818 | F134: 0.04545454545 | G134: 0
A135: P81763:DR HP CHAKRABARTI | B135: NHS Greater Preston CCG | C135: 0.25 | D135: 0 | E135: 0.5 | F135: 0.25 | G135: 0
A136: P81770:AVENHAM LANE PRACTICE | B136: NHS Greater Preston CCG | C136: 0.2666666667 | D136: 0.06666666667 | E136: 0.4666666667 | F136: 0.2 | G136: 0
A137: P81785:MEDICOM LTD | B137: NHS Greater Preston CCG | C137: 0.48 | D137: 0.04 | E137: 0.36 | F137: 0.08 | G137: 0.04
A138: A82003:ULVERSTON HEALTH CENTRE (MURRAY) | B138: NHS Morecambe Bay CCG | C138: 0.4519230769 | D138: 0.1730769231 | E138: 0.2884615385 | F138: 0.08653846154 | G138: 0
A139: A82005:AMBLESIDE HEALTH CENTRE | B139: NHS Morecambe Bay CCG | C139: 0.5555555556 | D139: 0.04444444444 | E139: 0.2888888889 | F139: 0.1111111111 | G139: 0
A140: A82007:DUKE STREET SURGERY | B140: NHS Morecambe Bay CCG | C140: 0.3838383838 | D140: 0.2727272727 | E140: 0.2626262626 | F140: 0.0404040404 | G140: 0.0404040404
A141: A82008:NORWOOD MEDICAL CENTRE | B141: NHS Morecambe Bay CCG | C141: 0.5363636364 | D141: 0.1545454545 | E141: 0.2454545455 | F141: 0.02727272727 | G141: 0.03636363636
A142: A82009:BRIDGEGATE MEDICAL CENTRE | B142: NHS Morecambe Bay CCG | C142: 0.5463917526 | D142: 0.175257732 | E142: 0.1958762887 | F142: 0.0412371134 | G142: 0.0412371134
A143: A82010:ABBEY ROAD SURGERY | B143: NHS Morecambe Bay CCG | C143: 0.546875 | D143: 0.1875 | E143: 0.140625 | F143: 0.109375 | G143: 0.015625
A144: A82025:CAPTAIN FRENCH SURGERY | B144: NHS Morecambe Bay CCG | C144: 0.2448979592 | D144: 0.4081632653 | E144: 0.306122449 | F144: 0.0306122449 | G144: 0.01020408163
A145: A82026:THE JAMES COCHRANE PRACT. | B145: NHS Morecambe Bay CCG | C145: 0.2662721893 | D145: 0.4082840237 | E145: 0.2544378698 | F145: 0.0650887574 | G145: 0.005917159763
A146: A82027:STATION HOUSE SURGERY | B146: NHS Morecambe Bay CCG | C146: 0.376146789 | D146: 0.2201834862 | E146: 0.2935779817 | F146: 0.04587155963 | G146: 0.06422018349
A147: A82030:LUNESDALE SURGERY | B147: NHS Morecambe Bay CCG | C147: 0.3469387755 | D147: 0.1020408163 | E147: 0.4693877551 | F147: 0.08163265306 | G147: 0
A148: A82033:WATERLOO HOUSE SURGERY | B148: NHS Morecambe Bay CCG | C148: 0.6 | D148: 0.07368421053 | E148: 0.2736842105 | F148: 0.02105263158 | G148: 0.03157894737
A149: A82034:STONELEIGH SURGERY | B149: NHS Morecambe Bay CCG | C149: 0.4476190476 | D149: 0.2857142857 | E149: 0.1904761905 | F149: 0.04761904762 | G149: 0.02857142857
A150: A82039:DALTON SURGERY | B150: NHS Morecambe Bay CCG | C150: 0.2534246575 | D150: 0.4931506849 | E150: 0.2123287671 | F150: 0.02739726027 | G150: 0.01369863014
A151: A82046:WINDERMERE HEALTH CENTRE | B151: NHS Morecambe Bay CCG | C151: 0.4791666667 | D151: 0.04166666667 | E151: 0.4166666667 | F151: 0.02083333333 | G151: 0.04166666667
A152: A82053:NUTWOOD MEDICAL PRACTICE | B152: NHS Morecambe Bay CCG | C152: 0.323943662 | D152: 0.4084507042 | E152: 0.2253521127 | F152: 0.04225352113 | G152: 0
A153: A82062:ATKINSON HEALTH CENTRE | B153: NHS Morecambe Bay CCG | C153: 0.4358974359 | D153: 0.1282051282 | E153: 0.2820512821 | F153: 0.1025641026 | G153: 0.05128205128
A154: A82065:PENINSULA MEDICAL PRACTICE | B154: NHS Morecambe Bay CCG | C154: 0.2941176471 | D154: 0.3529411765 | E154: 0.2352941176 | F154: 0.03921568627 | G154: 0.07843137255
A155: A82068:ULVERSTON COMMUNITY HEALTH CENTRE | B155: NHS Morecambe Bay CCG | C155: 0.3414634146 | D155: 0.243902439 | E155: 0.2682926829 | F155: 0.09756097561 | G155: 0.0487804878
A156: A82070:ST.MARY'S SURGERY | B156: NHS Morecambe Bay CCG | C156: 0.36 | D156: 0.1 | E156: 0.38 | F156: 0.06 | G156: 0.1
A157: A82071:BURNETT EDGAR MEDICAL CTR | B157: NHS Morecambe Bay CCG | C157: 0.5853658537 | D157: 0.07317073171 | E157: 0.2195121951 | F157: 0.0243902439 | G157: 0.09756097561
A158: A82072:RISEDALE SURGERY | B158: NHS Morecambe Bay CCG | C158: 0.3255813953 | D158: 0.3255813953 | E158: 0.2906976744 | F158: 0.02325581395 | G158: 0.03488372093
A159: A82074:ARNSIDE SURGERY | B159: NHS Morecambe Bay CCG | C159: 0.4150943396 | D159: 0.3018867925 | E159: 0.2075471698 | F159: 0.07547169811 | G159: 0
A160: A82077:LIVERPOOL HOUSE SURGERY | B160: NHS Morecambe Bay CCG | C160: 0.5777777778 | D160: 0.1111111111 | E160: 0.2222222222 | F160: 0.06666666667 | G160: 0.02222222222
A161: A82608:SEDBERGH MEDICAL PRACTICE | B161: NHS Morecambe Bay CCG | C161: 0.5 | D161: 0 | E161: 0.4166666667 | F161: 0.02777777778 | G161: 0.05555555556
A162: A82613:WRAYSDALE HOUSE SURGERY | B162: NHS Morecambe Bay CCG | C162: 0.2 | D162: 0.1 | E162: 0.5 | F162: 0.2 | G162: 0
A163: A82621:ASKAM SURGERY | B163: NHS Morecambe Bay CCG | C163: 0.8 | D163: 0 | E163: 0.2 | F163: 0 | G163: 0
A164: A82629:THE FAMILY PRACTICE | B164: NHS Morecambe Bay CCG | C164: 0.4814814815 | D164: 0.1481481481 | E164: 0.3518518519 | F164: 0 | G164: 0.01851851852
A165: A82647:CARTMEL SURGERY | B165: NHS Morecambe Bay CCG | C165: 0.2121212121 | D165: 0.4545454545 | E165: 0.2424242424 | F165: 0.09090909091 | G165: 0
A166: A82650:HAVERTHWAITE SURGERY | B166: NHS Morecambe Bay CCG | C166: 0.2857142857 | D166: 0.3469387755 | E166: 0.3469387755 | F166: 0.02040816327 | G166: 0
A167: A82651:DUDDON VALLEY MEDICAL PRACTICE | B167: NHS Morecambe Bay CCG | C167: 0.24 | D167: 0.04 | E167: 0.4 | F167: 0.2 | G167: 0.12
A168: B82061:BENTHAM MEDICAL PRACTICE | B168: NHS Morecambe Bay CCG | C168: 0.3636363636 | D168: 0.2337662338 | E168: 0.2987012987 | F168: 0.07792207792 | G168: 0.02597402597
A169: P81002:LANCASTER MEDICAL PRACTICE | B169: NHS Morecambe Bay CCG | C169: 0.4281437126 | D169: 0.2125748503 | E169: 0.2784431138 | F169: 0.0748502994 | G169: 0.005988023952
A170: P81013:QUEEN SQUARE MEDICAL PRACTICE | B170: NHS Morecambe Bay CCG | C170: 0.3306451613 | D170: 0.3387096774 | E170: 0.25 | F170: 0.04838709677 | G170: 0.03225806452
A171: P81029:ASH TREES SURGERY | B171: NHS Morecambe Bay CCG | C171: 0.2806122449 | D171: 0.387755102 | E171: 0.2448979592 | F171: 0.07653061224 | G171: 0.01020408163
A172: P81113:PARK VIEW SURGERY | B172: NHS Morecambe Bay CCG | C172: 0.4677419355 | D172: 0.1935483871 | E172: 0.2741935484 | F172: 0.06451612903 | G172: 0
A173: Y01008:BAY MEDICAL GROUP | B173: NHS Morecambe Bay CCG | C173: 0.3563380282 | D173: 0.3352112676 | E173: 0.238028169 | F173: 0.05633802817 | G173: 0.01408450704
A174: P81014:ORMSKIRK MEDICAL PRACTICE | B174: NHS West Lancashire CCG | C174: 0.4592592593 | D174: 0.3407407407 | E174: 0.162962963 | F174: 0.03703703704 | G174: 0
A175: P81039:MANOR PRIMARY CARE | B175: NHS West Lancashire CCG | C175: 0.3953488372 | D175: 0.1860465116 | E175: 0.3255813953 | F175: 0.06976744186 | G175: 0.02325581395
A176: P81041:PARKGATE SURGERY | B176: NHS West Lancashire CCG | C176: 0.3888888889 | D176: 0.3444444444 | E176: 0.2444444444 | F176: 0.02222222222 | G176: 0
A177: P81045:THE ELMS PRACTICE | B177: NHS West Lancashire CCG | C177: 0.6296296296 | D177: 0.1481481481 | E177: 0.1851851852 | F177: 0.03703703704 | G177: 0
A178: P81084:HALL GREEN SURGERY | B178: NHS West Lancashire CCG | C178: 0.4893617021 | D178: 0.3085106383 | E178: 0.170212766 | F178: 0.03191489362 | G178: 0
A179: P81096:PARBOLD SURGERY | B179: NHS West Lancashire CCG | C179: 0.4927536232 | D179: 0.2173913043 | E179: 0.2028985507 | F179: 0.04347826087 | G179: 0.04347826087
A180: P81112:BEACON PRIMARY CARE | B180: NHS West Lancashire CCG | C180: 0.406779661 | D180: 0.3559322034 | E180: 0.197740113 | F180: 0.03389830508 | G180: 0.005649717514
A181: P81136:DR A BISARYA | B181: NHS West Lancashire CCG | C181: 0.5 | D181: 0.09090909091 | E181: 0.4090909091 | F181: 0 | G181: 0
A182: P81138:BURSCOUGH FAMILY PRACTICE | B182: NHS West Lancashire CCG | C182: 0.4545454545 | D182: 0.2121212121 | E182: 0.2727272727 | F182: 0.0303030303 | G182: 0.0303030303
A183: P81177:VIRAN MEDICAL CENTRE | B183: NHS West Lancashire CCG | C183: 0.5185185185 | D183: 0.1481481481 | E183: 0.3333333333 | F183: 0 | G183: 0
A184: P81201:ASHURST PRIMARY CARE | B184: NHS West Lancashire CCG | C184: 0.35 | D184: 0.2 | E184: 0.425 | F184: 0 | G184: 0.025
A185: P81208:SKELMERSDALE PRACTICE | B185: NHS West Lancashire CCG | C185: 0.5416666667 | D185: 0.125 | E185: 0.2833333333 | F185: 0.025 | G185: 0.025
A186: P81646:LATHOM HOUSE SURGERY | B186: NHS West Lancashire CCG | C186: 0.4864864865 | D186: 0.2162162162 | E186: 0.2702702703 | F186: 0.02702702703 | G186: 0
A187: P81674:STANLEY COURT SURGERY | B187: NHS West Lancashire CCG | C187: 0.5094339623 | D187: 0.1698113208 | E187: 0.3018867925 | F187: 0.01886792453 | G187: 0
A188: P81695:AUGHTON SURGERY | B188: NHS West Lancashire CCG | C188: 0.3048780488 | D188: 0.4390243902 | E188: 0.2195121951 | F188: 0.01219512195 | G188: 0.0243902439
A189: P81710:TARLETON GROUP PRACTICE | B189: NHS West Lancashire CCG | C189: 0.484375 | D189: 0.171875 | E189: 0.34375 | F189: 0 | G189: 0
A190: P81727:COUNTY ROAD SURGERY | B190: NHS West Lancashire CCG | C190: 0.3157894737 | D190: 0.1578947368 | E190: 0.4210526316 | F190: 0.05263157895 | G190: 0.05263157895
A191: P81758:MATTHEW RYDER CLINIC | B191: NHS West Lancashire CCG | C191: 0.4166666667 | D191: 0.04166666667 | E191: 0.4583333333 | F191: 0.04166666667 | G191: 0.04166666667

Sheet Annual trend lines
A1: Annual trends: mortality by setting, 1st January 2006 - 31st December 2017
A4: Please note that these are crude rate comparisons that do not take into account confounding factors such as population demographics (age/gender).
A5: Total = total deaths relating to persons registered to one of the six Lancashire county CCGs
G7: << Select CCG
A9: ="Mortality by setting: January 1st 2006 - December 31st 2017, "&'Trend Raw'!A28 -> Mortality by setting: January 1st 2006 - December 31st 2017, NHS Chorley and South Ribble CCG
B12: Grouping | C12: 2006 | D12: 2007 | E12: 2008 | F12: 2009 | G12: 2010 | H12: 2011 | I12: 2012 | J12: 2013 | K12: 2014 | L12: 2015 | M12: 2016 | N12: 2017
B13: Care home or home | C13: ='Trend Raw'!C31 -> 0.3643724696 | D13: ='Trend Raw'!D31 -> 0.301252472 | E13: ='Trend Raw'!E31 -> 0.3460122699 | F13: ='Trend Raw'!F31 -> 0.3923964698 | G13: ='Trend Raw'!G31 -> 0.3575342466 | H13: ='Trend Raw'!H31 -> 0.3942931258 | I13: ='Trend Raw'!I31 -> 0.4081761006 | J13: ='Trend Raw'!J31 -> 0.3925174382 | K13: ='Trend Raw'!K31 -> 0.4013950539 | L13: ='Trend Raw'!L31 -> 0.4225440806 | M13: ='Trend Raw'!M31 -> 0.4152905199 | N13: ='Trend Raw'!N31 -> 0.4314
B14: Hospital setting | C14: ='Trend Raw'!C32 -> 0.5377867746 | D14: ='Trend Raw'!D32 -> 0.5517468688 | E14: ='Trend Raw'!E32 -> 0.5711656442 | F14: ='Trend Raw'!F32 -> 0.5342837746 | G14: ='Trend Raw'!G32 -> 0.5547945205 | H14: ='Trend Raw'!H32 -> 0.5103761349 | I14: ='Trend Raw'!I32 -> 0.5062893082 | J14: ='Trend Raw'!J32 -> 0.5218769816 | K14: ='Trend Raw'!K32 -> 0.508560558 | L14: ='Trend Raw'!L32 -> 0.5088161209 | M14: ='Trend Raw'!M32 -> 0.4911314985 | N14: ='Trend Raw'!N32 -> 0.4733
B15: Hospice setting | C15: ='Trend Raw'!C33 -> 0.07354925776 | D15: ='Trend Raw'!D33 -> 0.08371786421 | E15: ='Trend Raw'!E33 -> 0.06012269939 | F15: ='Trend Raw'!F33 -> 0.05295315682 | G15: ='Trend Raw'!G33 -> 0.06849315068 | H15: ='Trend Raw'!H33 -> 0.07911802853 | I15: ='Trend Raw'!I33 -> 0.06918238994 | J15: ='Trend Raw'!J33 -> 0.06277742549 | K15: ='Trend Raw'!K33 -> 0.07292327204 | L15: ='Trend Raw'!L33 -> 0.05226700252 | M15: ='Trend Raw'!M33 -> 0.07584097859 | N15: ='Trend Raw'!N33 -> 0.0808
B44: Please note: NHS Morecambe Bay CCG figures recorded 2006-2015 are based on the old NHS Lancashire North CCG
B47: Source of data: August 2018 PCMD received from NHS Digital

Sheet Trend Raw (hidden)
A1: Area | B1: Grouping | C1: 2006 | D1: 2007 | E1: 2008 | F1: 2009 | G1: 2010 | H1: 2011 | I1: 2012 | J1: 2013 | K1: 2014 | L1: 2015 | M1: 2016 | N1: 2017
A2: NHS Chorley and South Ribble CCG | B2: Care home or home | C2: 0.3643724696 | D2: 0.301252472 | E2: 0.3460122699 | F2: 0.3923964698 | G2: 0.3575342466 | H2: 0.3942931258 | I2: 0.4081761006 | J2: 0.3925174382 | K2: 0.4013950539 | L2: 0.4225440806 | M2: 0.4152905199 | N2: 0.4314
A3: NHS Chorley and South Ribble CCG | B3: Hospital setting | C3: 0.5377867746 | D3: 0.5517468688 | E3: 0.5711656442 | F3: 0.5342837746 | G3: 0.5547945205 | H3: 0.5103761349 | I3: 0.5062893082 | J3: 0.5218769816 | K3: 0.508560558 | L3: 0.5088161209 | M3: 0.4911314985 | N3: 0.4733
A4: NHS Chorley and South Ribble CCG | B4: Hospice setting | C4: 0.07354925776 | D4: 0.08371786421 | E4: 0.06012269939 | F4: 0.05295315682 | G4: 0.06849315068 | H4: 0.07911802853 | I4: 0.06918238994 | J4: 0.06277742549 | K4: 0.07292327204 | L4: 0.05226700252 | M4: 0.07584097859 | N4: 0.0808
A5: NHS East Lancashire CCG | B5: Care home or home | C5: 0.3728484175 | D5: 0.3621867882 | E5: 0.3947957471 | F5: 0.4003331483 | G5: 0.3918233363 | H5: 0.435196195 | I5: 0.4376068376 | J5: 0.4401955147 | K5: 0.4470124014 | L5: 0.4451339915 | M5: 0.4648283624 | N5: 0.4703
A6: NHS East Lancashire CCG | B6: Hospital setting | C6: 0.5682953914 | D6: 0.5768792711 | E6: 0.5472859541 | F6: 0.5399777901 | G6: 0.5449119666 | H6: 0.4976218787 | I6: 0.5111111111 | J6: 0.4948246118 | K6: 0.4844983089 | L6: 0.4837799718 | M6: 0.4701744513 | N6: 0.4645
A7: NHS East Lancashire CCG | B7: Hospice setting | C7: 0.03720155469 | D7: 0.03103644647 | E7: 0.03553441522 | F7: 0.03720155469 | G7: 0.03730229782 | H7: 0.04785969084 | I7: 0.03646723647 | J7: 0.04657849339 | K7: 0.04791431793 | L7: 0.0490832158 | M7: 0.04501969612 | N7: 0.0476
A8: NHS Fylde & Wyre CCG | B8: Care home or home | C8: 0.3745743473 | D8: 0.3340517241 | E8: 0.3870967742 | F8: 0.3915823122 | G8: 0.4117647059 | H8: 0.4103521878 | I8: 0.4544987147 | J8: 0.4675855028 | K8: 0.4841772152 | L8: 0.4701646091 | M8: 0.4637176938 | N8: 0.4947
A9: NHS Fylde & Wyre CCG | B9: Hospital setting | C9: 0.5357548241 | D9: 0.5172413793 | E9: 0.5370967742 | F9: 0.5141182738 | G9: 0.5070028011 | H9: 0.4989327641 | I9: 0.4699228792 | J9: 0.4680959673 | K9: 0.4530590717 | L9: 0.4614197531 | M9: 0.4706759443 | N9: 0.4323
A10: NHS Fylde & Wyre CCG | B10: Hospice setting | C10: 0.07377979569 | D10: 0.07596982759 | E10: 0.06290322581 | F10: 0.07725093234 | G10: 0.06666666667 | H10: 0.07844183565 | I10: 0.06426735219 | J10: 0.05308831036 | K10: 0.04799578059 | L10: 0.05144032922 | M10: 0.05119284294 | N10: 0.0585
A11: NHS Greater Preston CCG | B11: Care home or home | C11: 0.3337250294 | D11: 0.340389016 | E11: 0.3154061625 | F11: 0.3500597372 | G11: 0.3405146619 | H11: 0.370212766 | I11: 0.3730904818 | J11: 0.3669724771 | K11: 0.3816964286 | L11: 0.4201488266 | M11: 0.4435710275 | N11: 0.4295
A12: NHS Greater Preston CCG | B12: Hospital setting | C12: 0.5881316099 | D12: 0.5680778032 | E12: 0.5994397759 | F12: 0.5806451613 | G12: 0.5888689408 | H12: 0.5458966565 | I12: 0.5411280846 | J12: 0.5561926606 | K12: 0.5463169643 | L12: 0.5060103034 | M12: 0.4755755194 | N12: 0.4774
A13: NHS Greater Preston CCG | B13: Hospice setting | C13: 0.05229142186 | D13: 0.06407322654 | E13: 0.0649859944 | F13: 0.05197132616 | G13: 0.05445840814 | H13: 0.06808510638 | I13: 0.05992949471 | J13: 0.05963302752 | K13: 0.05524553571 | L13: 0.05724098454 | M13: 0.0634475014 | N13: 0.0745
A14: NHS Morecambe Bay CCG | B14: Care home or home | C14: 0.3310727497 | D14: 0.3501702611 | E14: 0.3738317757 | F14: 0.3674889311 | G14: 0.3988970588 | H14: 0.4323473883 | I14: 0.4752293578 | J14: 0.4747774481 | K14: 0.4659433394 | L14: 0.4932630346 | M14: 0.4905860514 | N14: 0.5252
A15: NHS Morecambe Bay CCG | B15: Hospital setting | C15: 0.5610357583 | D15: 0.5408626561 | E15: 0.5327102804 | F15: 0.5547122075 | G15: 0.5153186275 | H15: 0.4745122719 | I15: 0.4385321101 | J15: 0.4160237389 | K15: 0.4213381555 | L15: 0.4135910955 | M15: 0.4232299125 | N15: 0.3924
A16: NHS Morecambe Bay CCG | B16: Hospice setting | C16: 0.08949880668 | D16: 0.08830548926 | E16: 0.0745823389 | F16: 0.05787589499 | G16: 0.07517899761 | H16: 0.06742243437 | I16: 0.07159904535 | J16: 0.08890214797 | K16: 0.08890214797 | L16: 0.07100238663 | M16: 0.06019623442 | N16: 0.0597
A17: NHS West Lancashire CCG | B17: Care home or home | C17: 0.3825503356 | D17: 0.4332372719 | E17: 0.4194444444 | F17: 0.4062196307 | G17: 0.3967649857 | H17: 0.4525193798 | I17: 0.467789891 | J17: 0.4525745257 | K17: 0.4980988593 | L17: 0.4798245614 | M17: 0.4832495812 | N17: 0.5265
A18: NHS West Lancashire CCG | B18: Hospital setting | C18: 0.5023969319 | D18: 0.4889529299 | E18: 0.512962963 | F18: 0.5111758989 | G18: 0.5337773549 | H18: 0.4912790698 | I18: 0.4767096135 | J18: 0.4814814815 | K18: 0.4401140684 | L18: 0.4561403509 | M18: 0.458961474 | N18: 0.4256
A19: NHS West Lancashire CCG | B19: Hospice setting | C19: 0.092042186 | D19: 0.06724303554 | E19: 0.04722222222 | F19: 0.0612244898 | G19: 0.04852521408 | H19: 0.03779069767 | I19: 0.03666997027 | J19: 0.0460704607 | K19: 0.04087452471 | L19: 0.04298245614 | M19: 0.03433835846 | N19: 0.0325
A28: NHS Chorley and South Ribble CCG
A30: Area | B30: Grouping | C30: 2006 | D30: 2007 | E30: 2008 | F30: 2009 | G30: 2010 | H30: 2011 | I30: 2012 | J30: 2013 | K30: 2014 | L30: 2015 | M30: 2016 | N30: 2017
A31: =$A$28 -> NHS Chorley and South Ribble CCG | B31: Care home or home | C31: =SUM(IF($A$2:$A$19=$A31,IF($B$2:$B$19=$B31,IF($C$1:$M$1=C$30,$C$2:$M$19)))) -> 0.3643724696 | D31: =SUM(IF($A$2:$A$19=$A31,IF($B$2:$B$19=$B31,IF($C$1:$M$1=D$30,$C$2:$M$19)))) -> 0.301252472 | E31: =SUM(IF($A$2:$A$19=$A31,IF($B$2:$B$19=$B31,IF($C$1:$M$1=E$30,$C$2:$M$19)))) -> 0.3460122699 | F31: =SUM(IF($A$2:$A$19=$A31,IF($B$2:$B$19=$B31,IF($C$1:$M$1=F$30,$C$2:$M$19)))) -> 0.3923964698 | G31: =SUM(IF($A$2:$A$19=$A31,IF($B$2:$B$19=$B31,IF($C$1:$M$1=G$30,$C$2:$M$19)))) -> 0.3575342466 | H31: =SUM(IF($A$2:$A$19=$A31,IF($B$2:$B$19=$B31,IF($C$1:$M$1=H$30,$C$2:$M$19)))) -> 0.3942931258 | I31: =SUM(IF($A$2:$A$19=$A31,IF($B$2:$B$19=$B31,IF($C$1:$M$1=I$30,$C$2:$M$19)))) -> 0.4081761006 | J31: =SUM(IF($A$2:$A$19=$A31,IF($B$2:$B$19=$B31,IF($C$1:$M$1=J$30,$C$2:$M$19)))) -> 0.3925174382 | K31: =SUM(IF($A$2:$A$19=$A31,IF($B$2:$B$19=$B31,IF($C$1:$M$1=K$30,$C$2:$M$19)))) -> 0.4013950539 | L31: =SUM(IF($A$2:$A$19=$A31,IF($B$2:$B$19=$B31,IF($C$1:$M$1=L$30,$C$2:$M$19)))) -> 0.4225440806 | M31: =SUM(IF($A$2:$A$19=$A31,IF($B$2:$B$19=$B31,IF($C$1:$M$1=M$30,$C$2:$M$19)))) -> 0.4152905199 | N31: =SUM(IF($A$2:$A$19=$A31,IF($B$2:$B$19=$B31,IF($C$1:$N$1=N$30,$C$2:$N$19)))) -> 0.4314
A32: =$A$28 -> NHS Chorley and South Ribble CCG | B32: Hospital setting | C32: =SUM(IF($A$2:$A$19=$A32,IF($B$2:$B$19=$B32,IF($C$1:$M$1=C$30,$C$2:$M$19)))) -> 0.5377867746 | D32: =SUM(IF($A$2:$A$19=$A32,IF($B$2:$B$19=$B32,IF($C$1:$M$1=D$30,$C$2:$M$19)))) -> 0.5517468688 | E32: =SUM(IF($A$2:$A$19=$A32,IF($B$2:$B$19=$B32,IF($C$1:$M$1=E$30,$C$2:$M$19)))) -> 0.5711656442 | F32: =SUM(IF($A$2:$A$19=$A32,IF($B$2:$B$19=$B32,IF($C$1:$M$1=F$30,$C$2:$M$19)))) -> 0.5342837746 | G32: =SUM(IF($A$2:$A$19=$A32,IF($B$2:$B$19=$B32,IF($C$1:$M$1=G$30,$C$2:$M$19)))) -> 0.5547945205 | H32: =SUM(IF($A$2:$A$19=$A32,IF($B$2:$B$19=$B32,IF($C$1:$M$1=H$30,$C$2:$M$19)))) -> 0.5103761349 | I32: =SUM(IF($A$2:$A$19=$A32,IF($B$2:$B$19=$B32,IF($C$1:$M$1=I$30,$C$2:$M$19)))) -> 0.5062893082 | J32: =SUM(IF($A$2:$A$19=$A32,IF($B$2:$B$19=$B32,IF($C$1:$M$1=J$30,$C$2:$M$19)))) -> 0.5218769816 | K32: =SUM(IF($A$2:$A$19=$A32,IF($B$2:$B$19=$B32,IF($C$1:$M$1=K$30,$C$2:$M$19)))) -> 0.508560558 | L32: =SUM(IF($A$2:$A$19=$A32,IF($B$2:$B$19=$B32,IF($C$1:$M$1=L$30,$C$2:$M$19)))) -> 0.5088161209 | M32: =SUM(IF($A$2:$A$19=$A32,IF($B$2:$B$19=$B32,IF($C$1:$M$1=M$30,$C$2:$M$19)))) -> 0.4911314985 | N32: =SUM(IF($A$2:$A$19=$A32,IF($B$2:$B$19=$B32,IF($C$1:$N$1=N$30,$C$2:$N$19)))) -> 0.4733
A33: NHS Chorley and South Ribble CCG | B33: Hospice setting | C33: =SUM(IF($A$2:$A$19=$A33,IF($B$2:$B$19=$B33,IF($C$1:$M$1=C$30,$C$2:$M$19)))) -> 0.07354925776 | D33: =SUM(IF($A$2:$A$19=$A33,IF($B$2:$B$19=$B33,IF($C$1:$M$1=D$30,$C$2:$M$19)))) -> 0.08371786421 | E33: =SUM(IF($A$2:$A$19=$A33,IF($B$2:$B$19=$B33,IF($C$1:$M$1=E$30,$C$2:$M$19)))) -> 0.06012269939 | F33: =SUM(IF($A$2:$A$19=$A33,IF($B$2:$B$19=$B33,IF($C$1:$M$1=F$30,$C$2:$M$19)))) -> 0.05295315682 | G33: =SUM(IF($A$2:$A$19=$A33,IF($B$2:$B$19=$B33,IF($C$1:$M$1=G$30,$C$2:$M$19)))) -> 0.06849315068 | H33: =SUM(IF($A$2:$A$19=$A33,IF($B$2:$B$19=$B33,IF($C$1:$M$1=H$30,$C$2:$M$19)))) -> 0.07911802853 | I33: =SUM(IF($A$2:$A$19=$A33,IF($B$2:$B$19=$B33,IF($C$1:$M$1=I$30,$C$2:$M$19)))) -> 0.06918238994 | J33: =SUM(IF($A$2:$A$19=$A33,IF($B$2:$B$19=$B33,IF($C$1:$M$1=J$30,$C$2:$M$19)))) -> 0.06277742549 | K33: =SUM(IF($A$2:$A$19=$A33,IF($B$2:$B$19=$B33,IF($C$1:$M$1=K$30,$C$2:$M$19)))) -> 0.07292327204 | L33: =SUM(IF($A$2:$A$19=$A33,IF($B$2:$B$19=$B33,IF($C$1:$M$1=L$30,$C$2:$M$19)))) -> 0.05226700252 | M33: =SUM(IF($A$2:$A$19=$A33,IF($B$2:$B$19=$B33,IF($C$1:$M$1=M$30,$C$2:$M$19)))) -> 0.07584097859 | N33: =SUM(IF($A$2:$A$19=$A33,IF($B$2:$B$19=$B33,IF($C$1:$N$1=N$30,$C$2:$N$19)))) -> 0.0808

Sheet Usual place of residence
A1: Usual place of residence: rolling 12-month report, 1st April 2017 - 31st March 2018
A4: A death is recorded as 'usual place of residence' if the address the death occurred at matches the deceased individual's usual place of residence address.
A6: During the 12-month period 1st April 2017 to 31st March 2018:
A7: ● Females were more likely to die in their usual place of residence than males; this could be influenced by women tending to live longer than males.
A8: ● Patients who died from COPD (33%), were significantly less likely to die in their usual place of residence compared to those who died from cancer (39%) or all circulatory disease (40%).
A11: The chart shows the usual place of residence deaths by CCG, gender, age group, condition, dementia and deprivation. Click on the grey boxes below to select the area you are interested in. For GP practice data, please scroll down the page.
A13: Selection
A33: Data extracted from the PCMD 20/11/2018 by Lancashire county council
A51: Usual place of death - proportion of deaths recorded as occurring in an individual's usual place of residence, GP practice breakdown, rolling 12-month period, 1st April 2017 - 31st March 2018
B54: Registered CCG | C54: NHS Chorley and South Ribble CCG | D54: << Select CCG
B56: Sum of Yes
B57: Practice | C57: Total
B58: P81689:EAVES LANE SURGERY | C58: 0.5882352941
B59: P81180:CLAYTON BROOK SURGERY | C59: 0.58
B60: Y00347:DR R BAGHDJIAN SURGERY | C60: 0.5217391304
B61: P81127:THE SURGERY CHORLEY | C61: 0.4814814815
B62: P81033:COPPULL MEDICAL PRACTICE | C62: 0.4715447154
B63: P81741:STATION SURGERY | C63: 0.4375
B64: P81687:NEW LONGTON SURGERY | C64: 0.4347826087
B65: P81062:REGENT HOUSE SURGERY | C65: 0.4166666667
B66: P81733:ECCLESTON HEALTH CENTRE | C66: 0.4166666667
B67: P81038:THE CHORLEY SURGERY | C67: 0.4050632911
B68: P81655:THE VILLAGE SURGERIES CROSTON&ECCLESTON | C68: 0.4027777778
B69: P81044:LIBRARY HOUSE SURGERY | C69: 0.3910891089
B70: P81083:ROSLEA SURGERY | C70: 0.376
B71: P81154:GRANVILLE HOUSE MED CTRE | C71: 0.3725490196
B72: P81701:PRESTON ROAD SURGERY | C72: 0.3714285714
B73: P81692:BEECHES MEDICAL CENTRE | C73: 0.3666666667
B74: P81143:WHITTLE SURGERY | C74: 0.3580246914
B75: P81076:SANDY LANE SURGERY | C75: 0.3465346535
B76: P81117:CENTRAL PARK SURGERY | C76: 0.3428571429
B77: P81082:THE RYAN MEDICAL CENTRE | C77: 0.3333333333
B78: P81173:CROSTON MEDICAL CENTRE | C78: 0.3333333333
B79: P81642:MEDICARE UNIT SURGERY | C79: 0.3181818182
B80: Y03656:LEYLAND SURGERY | C80: 0.3148148148
B81: P81057:WORDEN MEDICAL CENTRE | C81: 0.3130434783
B82: Y02466:BUCKSHAW VILLAGE HEALTH CENTRE | C82: 0.2777777778
B83: P81740:ADLINGTON MEDICAL CENTRE | C83: 0.25
B84: P81181:KINGSFOLD MEDICAL CENTRE | C84: 0.2333333333
B85: P81010:WITHNELL HEALTH CENTRE | C85: 0.2173913043
B86: P81186:MOSS SIDE MEDICAL CENTRE | C86: 0.2121212121
B87: P81171:THE EUXTON MEDICAL CENTRE | C87: 0.1923076923
B88: P81769:LOSTOCK HALL VILLAGE SURGERY | C88: 0.1666666667
B245: =B54 & ": " &C54 -> Registered CCG: NHS Chorley and South Ribble CCG
A281: Please note that these are crude rate comparisons that do not take into account confounding factors such as population demographics (age/gender). Additionally these rates only take into account a small time frame.
A282: Slight differences in how an address is recorded (for example '2 North Street, Preston, Lancashire' and '2 North Street, Preston, PR1 1AA') and system updates (a person is admitted into a care home and dies before their address details are updated) can affect this measure.
A284: Total = total deaths relating to persons registered to one of the six Lancashire county area CCGs

Sheet Practice UPD (hidden)
A1: Registered CCG | B1: Practice | C1: Yes
A2: NHS Chorley and South Ribble CCG | B2: P81010:WITHNELL HEALTH CENTRE | C2: 0.2173913043
A3: NHS Chorley and South Ribble CCG | B3: P81033:COPPULL MEDICAL PRACTICE | C3: 0.4715447154
A4: NHS Chorley and South Ribble CCG | B4: P81038:THE CHORLEY SURGERY | C4: 0.4050632911
A5: NHS Chorley and South Ribble CCG | B5: P81044:LIBRARY HOUSE SURGERY | C5: 0.3910891089
A6: NHS Chorley and South Ribble CCG | B6: P81057:WORDEN MEDICAL CENTRE | C6: 0.3130434783
A7: NHS Chorley and South Ribble CCG | B7: P81062:REGENT HOUSE SURGERY | C7: 0.4166666667
A8: NHS Chorley and South Ribble CCG | B8: P81076:SANDY LANE SURGERY | C8: 0.3465346535
A9: NHS Chorley and South Ribble CCG | B9: P81082:THE RYAN MEDICAL CENTRE | C9: 0.3333333333
A10: NHS Chorley and South Ribble CCG | B10: P81083:ROSLEA SURGERY | C10: 0.376
A11: NHS Chorley and South Ribble CCG | B11: P81117:CENTRAL PARK SURGERY | C11: 0.3428571429
A12: NHS Chorley and South Ribble CCG | B12: P81127:THE SURGERY CHORLEY | C12: 0.4814814815
A13: NHS Chorley and South Ribble CCG | B13: P81143:WHITTLE SURGERY | C13: 0.3580246914
A14: NHS Chorley and South Ribble CCG | B14: P81154:GRANVILLE HOUSE MED CTRE | C14: 0.3725490196
A15: NHS Chorley and South Ribble CCG | B15: P81171:THE EUXTON MEDICAL CENTRE | C15: 0.1923076923
A16: NHS Chorley and South Ribble CCG | B16: P81173:CROSTON MEDICAL CENTRE | C16: 0.3333333333
A17: NHS Chorley and South Ribble CCG | B17: P81180:CLAYTON BROOK SURGERY | C17: 0.58
A18: NHS Chorley and South Ribble CCG | B18: P81181:KINGSFOLD MEDICAL CENTRE | C18: 0.2333333333
A19: NHS Chorley and South Ribble CCG | B19: P81186:MOSS SIDE MEDICAL CENTRE | C19: 0.2121212121
A20: NHS Chorley and South Ribble CCG | B20: P81642:MEDICARE UNIT SURGERY | C20: 0.3181818182
A21: NHS Chorley and South Ribble CCG | B21: P81655:THE VILLAGE SURGERIES CROSTON&ECCLESTON | C21: 0.4027777778
A22: NHS Chorley and South Ribble CCG | B22: P81687:NEW LONGTON SURGERY | C22: 0.4347826087
A23: NHS Chorley and South Ribble CCG | B23: P81689:EAVES LANE SURGERY | C23: 0.5882352941
A24: NHS Chorley and South Ribble CCG | B24: P81692:BEECHES MEDICAL CENTRE | C24: 0.3666666667
A25: NHS Chorley and South Ribble CCG | B25: P81701:PRESTON ROAD SURGERY | C25: 0.3714285714
A26: NHS Chorley and South Ribble CCG | B26: P81733:ECCLESTON HEALTH CENTRE | C26: 0.4166666667
A27: NHS Chorley and South Ribble CCG | B27: P81740:ADLINGTON MEDICAL CENTRE | C27: 0.25
A28: NHS Chorley and South Ribble CCG | B28: P81741:STATION SURGERY | C28: 0.4375
A29: NHS Chorley and South Ribble CCG | B29: P81769:LOSTOCK HALL VILLAGE SURGERY | C29: 0.1666666667
A30: NHS Chorley and South Ribble CCG | B30: Y00347:DR R BAGHDJIAN SURGERY | C30: 0.5217391304
A31: NHS Chorley and South Ribble CCG | B31: Y02466:BUCKSHAW VILLAGE HEALTH CENTRE | C31: 0.2777777778
A32: NHS Chorley and South Ribble CCG | B32: Y03656:LEYLAND SURGERY | C32: 0.3148148148
A33: NHS East Lancashire CCG | B33: P81003:ST JAMES' MEDICAL CENTRE | C33: 0.3904761905
A34: NHS East Lancashire CCG | B34: P81008:YORKSHIRE STREET MEDICAL CENTRE | C34: 0.4528301887
A35: NHS East Lancashire CCG | B35: P81017:WHALLEY MEDICAL CENTRE | C35: 0.2988505747
A36: NHS East Lancashire CCG | B36: P81020:ST. NICHOLAS GROUP PRACTICE | C36: 0.3684210526
A37: NHS East Lancashire CCG | B37: P81025:THE RICHMOND HILL PRACTICE | C37: 0.4385964912
A38: NHS East Lancashire CCG | B38: P81027:IRWELL MEDICAL PRACTICE | C38: 0.3384615385
A39: NHS East Lancashire CCG | B39: P81028:MANCHESTER ROAD SURGERY | C39: 0.4285714286
A40: NHS East Lancashire CCG | B40: P81032:REEDYFORD HLTH CARE GROUP | C40: 0.3571428571
A41: NHS East Lancashire CCG | B41: P81035:COLNE ROAD SURGERY | C41: 0.3055555556
A42: NHS East Lancashire CCG | B42: P81036:PEEL HOUSE MEDICAL PRACTICE | C42: 0.4061135371
A43: NHS East Lancashire CCG | B43: P81047:PARKSIDE SURGERY | C43: 0.3798449612
A44: NHS East Lancashire CCG | B44: P81053:BRIERCLIFFE SURGERY | C44: 0.4606741573
A45: NHS East Lancashire CCG | B45: P81065:THE PENDLE MEDICAL PARTNERSHIP | C45: 0.4822695035
A46: NHS East Lancashire CCG | B46: P81069:PENDLESIDE MEDICAL PRACT | C46: 0.4453125
A47: NHS East Lancashire CCG | B47: P81070:PENDLE VIEW MEDICAL CTRE | C47: 0.4536082474
A48: NHS East Lancashire CCG | B48: P81078:BARNOLDSWICK MED CTR | C48: 0.3963963964
A49: NHS East Lancashire CCG | B49: P81088:WHITWORTH MEDICAL CENTRE | C49: 0.4318181818
A50: NHS East Lancashire CCG | B50: P81095:THURSBY SURGERY | C50: 0.2878787879
A51: NHS East Lancashire CCG | B51: P81099:DR THM MACKENZIE & PARTNERS | C51: 0.3307692308
A52: NHS East Lancashire CCG | B52: P81100:THE CASTLE MEDICAL GROUP | C52: 0.3684210526
A53: NHS East Lancashire CCG | B53: P81104:OXFORD ROAD MEDICAL CTRE | C53: 0.4761904762
A54: NHS East Lancashire CCG | B54: P81118:ILEX VIEW MEDICAL PRACTICE | C54: 0.4657534247
A55: NHS East Lancashire CCG | B55: P81123:ELMS FEDERATED PRACTICE | C55: 0.4685314685
A56: NHS East Lancashire CCG | B56: P81130:PADIHAM GROUP PRACTICE | C56: 0.338028169
A57: NHS East Lancashire CCG | B57: P81132:DR DM DOHERTY & PARTNERS | C57: 0.4210526316
A58: NHS East Lancashire CCG | B58: P81134:KIDDROW MEDICAL PRACTICE | C58: 0.4594594595
A59: NHS East Lancashire CCG | B59: P81137:BURNLEY WOOD MEDICAL CENTRE | C59: 0.4736842105
A60: NHS East Lancashire CCG | B60: P81146:MYRTLE HOUSE | C60: 0.3529411765
A61: NHS East Lancashire CCG | B61: P81147:BLACKBURN RD MEDICAL CENTRE | C61: 0.380952381
A62: NHS East Lancashire CCG | B62: P81160:OSWALD MEDICAL CENTRE | C62: 0.4166666667
A63: NHS East Lancashire CCG | B63: P81165:IGHTENHILL MEDICAL CENTRE | C63: 0.347826087
A64: NHS East Lancashire CCG | B64: P81166:DR BELLO'S SURGERY | C64: 0.4375
A65: NHS East Lancashire CCG | B65: P81170:DR MALIK & PARTNER | C65: 0.3793103448
A66: NHS East Lancashire CCG | B66: P81182:RICHMOND MEDICAL CENTRE | C66: 0.3333333333
A67: NHS East Lancashire CCG | B67: P81197:ROSEGROVE SURGERY | C67: 0.4117647059
A68: NHS East Lancashire CCG | B68: P81212:DR MOUJAES | C68: 0.3414634146
A69: NHS East Lancashire CCG | B69: P81215:ROSEHILL SURGERY | C69: 0.34375
A70: NHS East Lancashire CCG | B70: P81218:THE CLAYTON MEDICAL CTR. | C70: 0.4466019417
A71: NHS East Lancashire CCG | B71: P81620:SLAIDBURN HEALTH CENTRE | C71: 0
A72: NHS East Lancashire CCG | B72: P81659:THE ROYLE | C72: 0.3571428571
A73: NHS East Lancashire CCG | B73: P81686:ROSSENDALE VALLEY MEDICAL PRACTICE | C73: 0.3157894737
A74: NHS East Lancashire CCG | B74: P81699:HIGHER HEYS SURGERY | C74: 0.45
A75: NHS East Lancashire CCG | B75: P81711:DILL HALL SURGERY | C75: 0.45
A76: NHS East Lancashire CCG | B76: P81726:KING STREET MEDICAL CTR | C76: 0.2666666667
A77: NHS East Lancashire CCG | B77: P81730:GREAT HARWOOD MEDICAL GROUP | C77: 0.3636363636
A78: NHS East Lancashire CCG | B78: P81731:DR JEHANGIR (SH) | C78: 0.3181818182
A79: NHS East Lancashire CCG | B79: P81732:HARAMBEE SURGERY | C79: 0.4411764706
A80: NHS East Lancashire CCG | B80: P81736:WHITEFIELD HEALTHCARE | C80: 0.2307692308
A81: NHS East Lancashire CCG | B81: P81738:RISHTON & GREAT HARWOOD SURGERY | C81: 0.5454545455
A82: NHS East Lancashire CCG | B82: P81749:ABBEY SURGERY | C82: 0.5454545455
A83: NHS East Lancashire CCG | B83: P81755:CABIN SURGERY | C83: 0.3409090909
A84: NHS East Lancashire CCG | B84: P81756:DANESHOUSE MEDICAL CENTRE | C84: 0.25
A85: NHS East Lancashire CCG | B85: P81757:BARROWFORD SURGERY | C85: 0.3870967742
A86: NHS East Lancashire CCG | B86: P81778:DR A K JHA (SH) | C86: 0.4166666667
A87: NHS East Lancashire CCG | B87: P81780:RIVERSIDE FAMILY PRACTICE | C87: 0.4375
A88: NHS East Lancashire CCG | B88: Y02605:AVHAC REGISTERED PATIENTS | C88: 0.375
A89: NHS East Lancashire CCG | B89: Y02606:FAIRMORE MEDICAL PRACTICE | C89: 0.3461538462
A90: NHS Fylde & Wyre CCG | B90: P81006:GARSTANG MEDICAL PRACTICE | C90: 0.32
A91: NHS Fylde & Wyre CCG | B91: P81031:POPLAR HOUSE SURGERY | C91: 0.3495145631
A92: NHS Fylde & Wyre CCG | B92: P81037:ANSDELL MEDICAL CENTRE | C92: 0.4566929134
A93: NHS Fylde & Wyre CCG | B93: P81059:GREAT ECCLESTON HLTH CTR | C93: 0.3975903614
A94: NHS Fylde & Wyre CCG | B94: P81077:HOLLAND HOUSE SURGERY | C94: 0.3641975309
A95: NHS Fylde & Wyre CCG | B95: P81079:THE THORNTON PRACTICE | C95: 0.368852459
A96: NHS Fylde & Wyre CCG | B96: P81086:BROADWAY MEDICAL CENTRE | C96: 0.3524590164
A97: NHS Fylde & Wyre CCG | B97: P81087:THE OVER-WYRE MED.CTR. | C97: 0.3766816143
A98: NHS Fylde & Wyre CCG | B98: P81089:THE MOUNT VIEW PRACTICE | C98: 0.3181818182
A99: NHS Fylde & Wyre CCG | B99: P81128:KIRKHAM HEALTH CENTRE | C99: 0.3617021277
A100: NHS Fylde & Wyre CCG | B100: P81129:ASH TREE HOUSE SURGERY | C100: 0.3505154639
A101: NHS Fylde & Wyre CCG | B101: P81133:THE VILLAGE PRACTICE | C101: 0.325
A102: NHS Fylde & Wyre CCG | B102: P81149:LOCKWOOD GP SURGERY | C102: 0.3759398496
A103: NHS Fylde & Wyre CCG | B103: P81150:CLIFTON MEDICAL PRACTICE | C103: 0.4677419355
A104: NHS Fylde & Wyre CCG | B104: P81157:FERNBANK SURGERY | C104: 0.4452054795
A105: NHS Fylde & Wyre CCG | B105: P81191:QUEENSWAY MEDICAL CENTRE | C105: 0.3543307087
A106: NHS Fylde & Wyre CCG | B106: P81210:PARK MEDICAL PRACTICE | C106: 0.3434343434
A107: NHS Fylde & Wyre CCG | B107: P81668:FLEETWOOD SURGERY | C107: 0.358974359
A108: NHS Fylde & Wyre CCG | B108: P81737:THE OLD LINKS SURGERY | C108: 0.5862068966
A109: NHS Fylde & Wyre CCG | B109: P81742:BEECHWOOD SURGERY | C109: 0.275
A110: NHS Greater Preston CCG | B110: P81015:LYTHAM ROAD SURGERY | C110: 0.4603174603
A111: NHS Greater Preston CCG | B111: P81018:ST FILLAN'S MEDICAL CTRE | C111: 0.3448275862
A112: NHS Greater Preston CCG | B112: P81040:LONGTON HEALTH CENTRE | C112: 0.4786324786
A113: NHS Greater Preston CCG | B113: P81046:PARK VIEW SURGERY | C113: 0.2708333333
A114: NHS Greater Preston CCG | B114: P81055:BERRY LANE MEDICAL CENTRE | C114: 0.4186046512
A115: NHS Greater Preston CCG | B115: P81067:THE HEALTHCARE CENTRE | C115: 0.3766233766
A116: NHS Greater Preston CCG | B116: P81071:THE NEW HALL LANE PRACTICE | C116: 0.3541666667
A117: NHS Greater Preston CCG | B117: P81093:THE GEOFFREY STREET SURGERY | C117: 0.2857142857
A118: NHS Greater Preston CCG | B118: P81103:NORTH PRESTON MEDICAL PRACTICE | C118: 0.3431372549
A119: NHS Greater Preston CCG | B119: P81107:STONEBRIDGE SURGERY | C119: 0.3333333333
A120: NHS Greater Preston CCG | B120: P81119:DOCLANDS MEDICAL CENTRE | C120: 0.5084745763
A121: NHS Greater Preston CCG | B121: P81152:THE SURGERY | C121: 0.3152173913
A122: NHS Greater Preston CCG | B122: P81169:FISHERGATE HILL SURGERY | C122: 0.4
A123: NHS Greater Preston CCG | B123: P81179:LOSTOCK HALL MEDICAL CTR. | C123: 0.28125
A124: NHS Greater Preston CCG | B124: P81184:RIBBLETON MEDICAL CENTRE | C124: 0.4776119403
A125: NHS Greater Preston CCG | B125: P81185:RIVERSIDE MEDICAL CENTRE | C125: 0.4
A126: NHS Greater Preston CCG | B126: P81196:ISSA MEDICAL CENTRE - PATEL | C126: 0.4029850746
A127: NHS Greater Preston CCG | B127: P81213:ST.MARY'S HEALTH CENTRE | C127: 0.3152173913
A128: NHS Greater Preston CCG | B128: P81647:DR JHA & DR YERRA SURGERY | C128: 0.2352941176
A129: NHS Greater Preston CCG | B129: P81664:THE PARK MEDICAL PRACTICE | C129: 0.3217391304
A130: NHS Greater Preston CCG | B130: P81667:ST WALBURGE'S MEDICAL PRACTICE | C130: 0.3142857143
A131: NHS Greater Preston CCG | B131: P81685:DR SZ SHAHID | C131: 0.2222222222
A132: NHS Greater Preston CCG | B132: P81735:DR A HUSSAIN | C132: 0.4782608696
A133: NHS Greater Preston CCG | B133: P81748:BRIARWOOD MEDICAL CENTRE | C133: 0.3636363636
A134: NHS Greater Preston CCG | B134: P81750:FRENCHWOOD SURGERY | C134: 0.1818181818
A135: NHS Greater Preston CCG | B135: P81763:DR HP CHAKRABARTI | C135: 0.5
A136: NHS Greater Preston CCG | B136: P81770:AVENHAM LANE PRACTICE | C136: 0.4666666667
A137: NHS Greater Preston CCG | B137: P81785:MEDICOM LTD | C137: 0.36
A138: NHS Morecambe Bay CCG | B138: A82003:ULVERSTON HEALTH CENTRE (MURRAY) | C138: 0.4230769231
A139: NHS Morecambe Bay CCG | B139: A82005:AMBLESIDE HEALTH CENTRE | C139: 0.3333333333
A140: NHS Morecambe Bay CCG | B140: A82007:DUKE STREET SURGERY | C140: 0.5252525253
A141: NHS Morecambe Bay CCG | B141: A82008:NORWOOD MEDICAL CENTRE | C141: 0.4
A142: NHS Morecambe Bay CCG | B142: A82009:BRIDGEGATE MEDICAL CENTRE | C142: 0.3402061856
A143: NHS Morecambe Bay CCG | B143: A82010:ABBEY ROAD SURGERY | C143: 0.296875
A144: NHS Morecambe Bay CCG | B144: A82025:CAPTAIN FRENCH SURGERY | C144: 0.6632653061
A145: NHS Morecambe Bay CCG | B145: A82026:THE JAMES COCHRANE PRACT. | C145: 0.5621301775
A146: NHS Morecambe Bay CCG | B146: A82027:STATION HOUSE SURGERY | C146: 0.4495412844
A147: NHS Morecambe Bay CCG | B147: A82030:LUNESDALE SURGERY | C147: 0.5510204082
A148: NHS Morecambe Bay CCG | B148: A82033:WATERLOO HOUSE SURGERY | C148: 0.3578947368
A149: NHS Morecambe Bay CCG | B149: A82034:STONELEIGH SURGERY | C149: 0.419047619
A150: NHS Morecambe Bay CCG | B150: A82039:DALTON SURGERY | C150: 0.5890410959
A151: NHS Morecambe Bay CCG | B151: A82046:WINDERMERE HEALTH CENTRE | C151: 0.4375
A152: NHS Morecambe Bay CCG | B152: A82053:NUTWOOD MEDICAL PRACTICE | C152: 0.5492957746
A153: NHS Morecambe Bay CCG | B153: A82062:ATKINSON HEALTH CENTRE | C153: 0.3846153846
A154: NHS Morecambe Bay CCG | B154: A82065:PENINSULA MEDICAL PRACTICE | C154: 0.5098039216
A155: NHS Morecambe Bay CCG | B155: A82068:ULVERSTON COMMUNITY HEALTH CENTRE | C155: 0.487804878
A156: NHS Morecambe Bay CCG | B156: A82070:ST.MARY'S SURGERY | C156: 0.48
A157: NHS Morecambe Bay CCG | B157: A82071:BURNETT EDGAR MEDICAL CTR | C157: 0.3658536585
A158: NHS Morecambe Bay CCG | B158: A82072:RISEDALE SURGERY | C158: 0.511627907
A159: NHS Morecambe Bay CCG | B159: A82074:ARNSIDE SURGERY | C159: 0.4339622642
A160: NHS Morecambe Bay CCG | B160: A82077:LIVERPOOL HOUSE SURGERY | C160: 0.3333333333
A161: NHS Morecambe Bay CCG | B161: A82608:SEDBERGH MEDICAL PRACTICE | C161: 0.4444444444
A162: NHS Morecambe Bay CCG | B162: A82613:WRAYSDALE HOUSE SURGERY | C162: 0.5
A163: NHS Morecambe Bay CCG | B163: A82621:ASKAM SURGERY | C163: 0.2
A164: NHS Morecambe Bay CCG | B164: A82629:THE FAMILY PRACTICE | C164: 0.5
A165: NHS Morecambe Bay CCG | B165: A82647:CARTMEL SURGERY | C165: 0.6363636364
A166: NHS Morecambe Bay CCG | B166: A82650:HAVERTHWAITE SURGERY | C166: 0.5918367347
A167: NHS Morecambe Bay CCG | B167: A82651:DUDDON VALLEY MEDICAL PRACTICE | C167: 0.44
A168: NHS Morecambe Bay CCG | B168: B82061:BENTHAM MEDICAL PRACTICE | C168: 0.3896103896
A169: NHS Morecambe Bay CCG | B169: P81002:LANCASTER MEDICAL PRACTICE | C169: 0.377245509
A170: NHS Morecambe Bay CCG | B170: P81013:QUEEN SQUARE MEDICAL PRACTICE | C170: 0.4193548387
A171: NHS Morecambe Bay CCG | B171: P81029:ASH TREES SURGERY | C171: 0.3928571429
A172: NHS Morecambe Bay CCG | B172: P81113:PARK VIEW SURGERY | C172: 0.4032258065
A173: NHS Morecambe Bay CCG | B173: Y01008:BAY MEDICAL GROUP | C173: 0.4084507042
A174: NHS West Lancashire CCG | B174: P81014:ORMSKIRK MEDICAL PRACTICE | C174: 0.4444444444
A175: NHS West Lancashire CCG | B175: P81039:MANOR PRIMARY CARE | C175: 0.4651162791
A176: NHS West Lancashire CCG | B176: P81041:PARKGATE SURGERY | C176: 0.4777777778
A177: NHS West Lancashire CCG | B177: P81045:THE ELMS PRACTICE | C177: 0.2592592593
A178: NHS West Lancashire CCG | B178: P81084:HALL GREEN SURGERY | C178: 0.3723404255
A179: NHS West Lancashire CCG | B179: P81096:PARBOLD SURGERY | C179: 0.3623188406
A180: NHS West Lancashire CCG | B180: P81112:BEACON PRIMARY CARE | C180: 0.418079096
A181: NHS West Lancashire CCG | B181: P81136:DR A BISARYA | C181: 0.5
A182: NHS West Lancashire CCG | B182: P81138:BURSCOUGH FAMILY PRACTICE | C182: 0.4242424242
A183: NHS West Lancashire CCG | B183: P81177:VIRAN MEDICAL CENTRE | C183: 0.4074074074
A184: NHS West Lancashire CCG | B184: P81201:ASHURST PRIMARY CARE | C184: 0.525
A185: NHS West Lancashire CCG | B185: P81208:SKELMERSDALE PRACTICE | C185: 0.3416666667
A186: NHS West Lancashire CCG | B186: P81646:LATHOM HOUSE SURGERY | C186: 0.4324324324
A187: NHS West Lancashire CCG | B187: P81674:STANLEY COURT SURGERY | C187: 0.4339622642
A188: NHS West Lancashire CCG | B188: P81695:AUGHTON SURGERY | C188: 0.5609756098
A189: NHS West Lancashire CCG | B189: P81710:TARLETON GROUP PRACTICE | C189: 0.4375
A190: NHS West Lancashire CCG | B190: P81727:COUNTY ROAD SURGERY | C190: 0.5263157895
A191: NHS West Lancashire CCG | B191: P81758:MATTHEW RYDER CLINIC | C191: 0.5

Sheet QOF palliative care
A1: QOF palliative care registers: 2009/10 to 2017/18
A4: Palliative care is the active holistic care of patients with advanced progressive illness(es). Management of pain and other symptoms and provision of psychological, social and spiritual support is paramount. The goal of palliative care is to achieve the best quality of life for patients and their families.
A7: The Quality and Outcomes Framework (QOF) register present a total count of all patients recorded as being in need of palliative care/support, irrespective of age, who are not expected to live beyond twelve months. This includes patients who have advanced or irreversible disease and clinical indicators of progressive deterioration and thereby a need for palliative care, and patients who are entitled to a DS 1500 form.*
A10: The table below shows the number of patients (by CCG) on the palliative care register from 2009/10 to 2017/18
A11: CCG Name | B11: 2009/10 | F11: 2010/11 | J11: 2011/12 | N11: 2012/13 | R11: 2013/14 | V11: 2014/15 | Z11: 2015/16 | AD11: 2016/17 | AH11: 2017/18
B12: List size | C12: Register | D12: Crude rate per 10,000 | E12: Significance to England | F12: List size | G12: Register | H12: Crude rate per 10,000 | I12: Significance to England | J12: List size | K12: Register | L12: Crude rate per 10,000 | M12: Significance to England | N12: List size | O12: Register | P12: Crude rate per 10,000 | Q12: Significance to England | R12: List size | S12: Register | T12: Crude rate per 10,000 | U12: Significance to England | V12: List size | W12: Register | X12: Crude rate per 10,000 | Y12: Significance to England | Z12: List size | AA12: Register | AB12: Crude rate per 10,000 | AC12: Significance to England | AD12: List size | AE12: Register | AF12: Crude rate per 10,000 | AG12: Significance to England | AH12: List size | AI12: Register | AJ12: Crude rate per 10,000 | AK12: Significance to England
A13: Chorley and South Ribble CCG | B13: 168678 | C13: 198 | D13: =C13/B13*10000 -> 11.73834169 | E13: - | F13: 169439 | G13: 235 | H13: =G13/F13*10000 -> 13.8692981 | I13: Low | J13: 170588 | K13: 255 | L13: =K13/J13*10000 -> 14.94829648 | M13: Low | N13: 174608 | O13: 302 | P13: =O13/N13*10000 -> 17.29588564 | Q13: Low | R13: 176023 | S13: 331 | T13: =S13/R13*10000 -> 18.80436079 | U13: Low | V13: 177605 | W13: 455 | X13: =W13/V13*10000 -> 25.61864812 | Y13: Low | Z13: 179785 | AA13: 517 | AB13: =AA13/Z13*10000 -> 28.75657035 | AC13: Low | AD13: 181931 | AE13: 858 | AF13: =AE13/AD13*10000 -> 47.16073676 | AG13: High | AH13: 188203 | AI13: 896 | AJ13: =AI13/AH13*10000 -> 47.60816778 | AK13: High
A14: East Lancashire CCG | B14: 351852 | C14: 439 | D14: =C14/B14*10000 -> 12.47683685 | E14: - | F14: 352041 | G14: 500 | H14: =G14/F14*10000 -> 14.20289114 | I14: Low | J14: 354429 | K14: 686 | L14: =K14/J14*10000 -> 19.35507535 | M14: - | N14: 367891 | O14: 808 | P14: =O14/N14*10000 -> 21.96302709 | Q14: - | R14: 371608 | S14: 933 | T14: =S14/R14*10000 -> 25.10710211 | U14: - | V14: 373091 | W14: 1039 | X14: =W14/V14*10000 -> 27.84843376 | Y14: Low | Z14: 375488 | AA14: 1196 | AB14: =AA14/Z14*10000 -> 31.85188342 | AC14: - | AD14: 378849 | AE14: 1309 | AF14: =AE14/AD14*10000 -> 34.55202469 | AG14: - | AH14: 381783 | AI14: 1682 | AJ14: =AI14/AH14*10000 -> 44.05644044 | AK14: High
A15: Fylde & Wyre CCG | B15: 143979 | C15: 240 | D15: 16.66909758 | E15: - | F15: 145647 | G15: 314 | H15: 21.55897478 | I15: High | J15: 145282 | K15: 526 | L15: 36.20544871 | M15: High | N15: 151104 | O15: 816 | P15: 54.0025413 | Q15: High | R15: 150650 | S15: 1037 | T15: 68.83504812 | U15: High | V15: 150710 | W15: 1030 | X15: 68.34317564 | Y15: High | Z15: 150877 | AA15: 1061 | AB15: 70.32218297 | AC15: High | AD15: 151112 | AE15: 1155 | AF15: 76.43337392 | AG15: High | AH15: 177376 | AI15: 1364 | AJ15: 76.89879127 | AK15: High
A16: Greater Preston CCG | B16: 197357 | C16: 238 | D16: 12.0593645 | E16: - | F16: 198737 | G16: 259 | H16: 13.03229897 | I16: Low | J16: 201360 | K16: 278 | L16: 13.80611839 | M16: Low | N16: 210949 | O16: 260 | P16: 12.32525397 | Q16: Low | R16: 207390 | S16: 297 | T16: 14.32084479 | U16: Low | V16: 210337 | W16: 321 | X16: 15.26122366 | Y16: Low | Z16: 211855 | AA16: 543 | AB16: 25.630738 | AC16: Low | AD16: 210130 | AE16: 724 | AF16: 34.45486128 | AG16: - | AH16: 209377 | AI16: 754 | AJ16: 36.01159631 | AK16: -
A17: Morecambe Bay CCG | B17: 102953 | C17: 150 | D17: 14.56975513 | E17: - | F17: 104647 | G17: 165 | H17: 15.76729385 | I17: - | J17: 104806 | K17: 196 | L17: 18.7012194 | M17: - | N17: 111967 | O17: 266 | P17: 23.75699983 | Q17: - | R17: 111946 | S17: 304 | T17: 27.15595019 | U17: - | V17: 112122 | W17: 335 | X17: 29.87816842 | Y17: - | Z17: 112275 | AA17: 414 | AB17: 36.87374749 | AC17: - | AD17: 113228 | AE17: 465 | AF17: 41.06758046 | AG17: - | AH17: 113697 | AI17: 513 | AJ17: 45.11992401 | AK17: High
A18: West Lancashire CCG | B18: 325986 | C18: 470 | D18: 14.41779708 | F18: 325958 | G18: 680 | H18: 20.86158339 | I18: High | J18: 334960 | K18: 1035 | L18: 30.89921185 | M18: High | N18: 355732.1926 | O18: 1163.663851 | P18: 32.71179485 | Q18: High | R18: 353174.7737 | S18: 2039.205582 | T18: =S18/R18*10000 -> 57.73927623 | U18: High | V18: 351786.5239 | W18: 2390.114341 | X18: 67.94218025 | Y18: High | Z18: 353483.0256 | AA18: 2657.290471 | AB18: 75.17448587 | AC18: High | AD18: 360784 | AE18: 2718 | AF18: 75.33593507 | AG18: High | AH18: 345853 | AI18: 2585 | AJ18: 74.74273752 | AK18: High
A19: Lancashire total | B19: =SUM(B13:B18) -> 1290805 | C19: =SUM(C13:C18) -> 1735 | D19: 13.44122466 | E19: - | F19: =SUM(F13:F18) -> 1296469 | G19: =SUM(G13:G18) -> 2153 | H19: 16.60664466 | I19: - | J19: =SUM(J13:J18) -> 1311425 | K19: =SUM(K13:K18) -> 2976 | L19: 22.69287226 | M19: High | N19: =SUM(N13:N18) -> 1372251.193 | O19: =SUM(O13:O18) -> 3615.663851 | P19: 26.34841106 | Q19: High | R19: =SUM(R13:R18) -> 1370791.774 | S19: =SUM(S13:S18) -> 4941.205582 | T19: 36.0463615 | U19: High | V19: =SUM(V13:V18) -> 1375651.524 | W19: =SUM(W13:W18) -> 5570.114341 | X19: 40.49073653 | Y19: High | Z19: =SUM(Z13:Z18) -> 1383763.026 | AA19: =SUM(AA13:AA18) -> 6388.290471 | AB19: 46.1660729 | AC19: High | AD19: =SUM(AD13:AD18) -> 1396034 | AE19: =SUM(AE13:AE18) -> 7229 | AF19: 51.78240645 | AG19: High | AH19: =SUM(AH13:AH18) -> 1416289 | AI19: =SUM(AI13:AI18) -> 7794 | AJ19: 55.03114124 | AK19: High
A20: England | B20: 54836561 | C20: 74907 | D20: 13.66004699 | F20: 55169643 | G20: 92870 | H20: 16.83353289 | J20: 55525732 | K20: 113105 | L20: 20.36983502 | N20: 56012096 | O20: 130233 | P20: 23.25087067 | R20: 56324887 | S20: 152099 | T20: 27.00387131 | V20: 56817654 | W20: 177329 | X20: 31.21019393 | Z20: 57549410 | AA20: 195573 | AB20: 33.98349349 | AD20: 58029147 | AE20: 214861 | AF20: 37.02639296 | AH20: 58383266 | AI20: 225166 | AJ20: 38.56687291
A21: * a DS1500 form is completed by a GP, consultant, hospital doctor or specialist nurse, which enables someone who is terminally ill to claim Disability Living Allowance or Attendance Allowance under the Department for Work and Pensions 'special rules'
A23: The chart shows the trend for the number of patients from the selected CCG on the palliative care register from 2009/10 to 2017/18. The chart for 2017/18 only can be found by scrolling further down
C25: << Select CCG
A44: The table below shows the values for the
A45: CCG Name | B45: 2009/10 | F45: 2010/11 | J45: 2011/12 | N45: 2012/13 | R45: 2013/14 | V45: 2014/15 | Z45: 2015/16 | AD45: 2016/17 | AH45: 2017/18
B46: List size | C46: Register | D46: Crude Rate Per 10,000 | E46: Significance to England | F46: List size | G46: Register | H46: Crude Rate Per 10,000 | I46: Significance to England | J46: List size | K46: Register | L46: Crude Rate Per 10,000 | M46: Significance to England | N46: List size | O46: Register | P46: Crude Rate Per 10,000 | Q46: Significance | R46: List size | S46: Register | T46: Crude Rate Per 10,000 | U46: Significance to England | V46: List size | W46: Register | X46: Crude Rate Per 10,000 | Y46: Significance to England | Z46: List size | AA46: Register | AB46: Crude Rate Per 10,000 | AC46: Significance to England | AD46: List size | AE46: Register | AF46: Crude Rate Per 10,000 | AG46: Significance to England | AH46: List size | AI46: Register | AJ46: Crude Rate Per 10,000 | AK46: Significance to England
A47: =A54 -> Morecambe Bay CCG | B47: =SUM(IF($A$13:$A$18=$A47,IF($B$12:$E$12=B$46,$B$13:$B$18))) -> 102953 | C47: =SUM(IF($A$13:$A$18=$A47,IF($B$12:$E$12=C$46,$C$13:$C$18))) -> 150 | D47: =SUM(IF($A$13:$A$18=$A47,IF($B$12:$E$12=D$46,$D$13:$D$18))) -> 14.56975513 | E47: =VLOOKUP($A47,A13:E18,5,FALSE) -> - | F47: =SUM(IF($A$13:$A$18=$A47,IF($B$12:$E$12=F$46,$F$13:$F$18))) -> 104647 | G47: =SUM(IF($A$13:$A$18=$A47,IF($B$12:$E$12=G$46,$G$13:$G$18))) -> 165 | H47: =SUM(IF($A$13:$A$18=$A47,IF($B$12:$E$12=H$46,H$13:H$18))) -> 15.76729385 | I47: =VLOOKUP($A47,$A13:I18,9,FALSE) -> - | J47: =SUM(IF($A$13:$A$18=$A47,IF($B$12:$E$12=J$46,J$13:J$18))) -> 104806 | K47: =SUM(IF($A$13:$A$18=$A47,IF($B$12:$E$12=K$46,K$13:K$18))) -> 196 | L47: =SUM(IF($A$13:$A$18=$A47,IF($B$12:$E$12=L$46,L$13:L$18))) -> 18.7012194 | M47: =VLOOKUP($A47,$A13:M18,13,FALSE) -> - | N47: =SUM(IF($A$13:$A$18=$A47,IF($B$12:$E$12=N$46,N$13:N$18))) -> 111967 | O47: =SUM(IF($A$13:$A$18=$A47,IF($B$12:$E$12=O$46,O$13:O$18))) -> 266 | P47: =SUM(IF($A$13:$A$18=$A47,IF($B$12:$E$12=P$46,P$13:P$18))) -> 23.75699983 | Q47: =VLOOKUP($A47,$A13:Q18,17,FALSE) -> - | R47: =SUM(IF($A$13:$A$18=$A47,IF($B$12:$E$12=R$46,R$13:R$18))) -> 111946 | S47: =SUM(IF($A$13:$A$18=$A47,IF($B$12:$E$12=S$46,S$13:S$18))) -> 304 | T47: =SUM(IF($A$13:$A$18=$A47,IF($B$12:$E$12=T$46,T$13:T$18))) -> 27.15595019 | U47: =VLOOKUP($A47,$A13:U18,21,FALSE) -> - | V47: =SUM(IF($A$13:$A$18=$A47,IF($B$12:$E$12=V$46,V$13:V$18))) -> 112122 | W47: =SUM(IF($A$13:$A$18=$A47,IF($B$12:$E$12=W$46,W$13:W$18))) -> 335 | X47: =SUM(IF($A$13:$A$18=$A47,IF($B$12:$E$12=X$46,X$13:X$18))) -> 29.87816842 | Y47: =VLOOKUP($A47,$A13:Y18,25,FALSE) -> - | Z47: =SUM(IF($A$13:$A$18=$A47,IF($B$12:$E$12=Z$46,Z$13:Z$18))) -> 112275 | AA47: =SUM(IF($A$13:$A$18=$A47,IF($B$12:$E$12=AA$46,AA$13:AA$18))) -> 414 | AB47: =SUM(IF($A$13:$A$18=$A47,IF($B$12:$E$12=AB$46,AB$13:AB$18))) -> 36.87374749 | AC47: =VLOOKUP($A47,$A13:AC18,29,FALSE) -> - | AD47: =SUM(IF($A$13:$A$18=$A47,IF($B$12:$E$12=AD$46,AD$13:AD$18))) -> 113228 | AE47: =SUM(IF($A$13:$A$18=$A47,IF($B$12:$E$12=AE$46,AE$13:AE$18))) -> 465 | AF47: =SUM(IF($A$13:$A$18=$A47,IF($B$12:$E$12=AF$46,AF$13:AF$18))) -> 41.06758046 | AG47: =VLOOKUP($A47,$A13:AG18,33,FALSE) -> - | AH47: =SUM(IF($A$13:$A$18=$A47,IF($B$12:$E$12=AH$46,AH$13:AH$18))) -> 113697 | AI47: =SUM(IF($A$13:$A$18=$A47,IF($B$12:$E$12=AI$46,AI$13:AI$18))) -> 513 | AJ47: =SUM(IF($A$13:$A$18=$A47,IF($B$12:$E$12=AJ$46,AJ$13:AJ$18))) -> 45.11992401 | AK47: =VLOOKUP($A47,$A13:AK18,37,FALSE) -> High
A48: All areas combined | B48: 1290805 | C48: 1735 | D48: 13.44122466 | E48: - | F48: 1296469 | G48: 2153 | H48: 16.60664466 | I48: - | J48: 1311425 | K48: 2976 | L48: 22.69287226 | M48: High | N48: 1372251.193 | O48: 3615.663851 | P48: 26.34841106 | Q48: High | R48: 1370791.774 | S48: 4941.205582 | T48: 36.0463615 | U48: High | V48: 1375651.524 | W48: 5570.114341 | X48: 40.49073653 | Y48: High | Z48: 1383763.026 | AA48: 6388.290471 | AB48: 46.1660729 | AC48: High | AD48: 1396034 | AE48: 7229 | AF48: 51.78240645 | AG48: High | AH48: 1416289 | AI48: 7794 | AJ48: 55.03114124 | AK48: High
A49: England | B49: 54836561 | C49: 74907 | D49: 13.66004699 | F49: 55169643 | G49: 92870 | H49: 16.83353289 | J49: 55525732 | K49: 113105 | L49: 20.36983502 | N49: 56012096 | O49: 130233 | P49: 23.25087067 | R49: 56324887 | S49: 152099 | T49: 27.00387131 | V49: 56817654 | W49: 177329 | X49: 31.21019393 | Z49: 57549410 | AA49: 195573 | AB49: 33.98349349 | AD49: 58029147 | AE49: 214861 | AF49: 37.02639296 | AH49: 58383266 | AI49: 225166 | AJ49: 38.56687291
A54: Morecambe Bay CCG | B54: =A54 & " QOF pallative care prevalence " & B56 -> Morecambe Bay CCG QOF pallative care prevalence 2017/18 | H54: =A54 & " " & A1 -> Morecambe Bay CCG QOF palliative care registers: 2009/10 to 2017/18
A55: QOF palliative care prevalence for 2017/18
A56: CCG Name | B56: 2017/18
B57: List size | C57: Register | D57: Crude rate per 10,000 | E57: Significance to England | F57: Lower | G57: Upper | I57: The significance columns refer to the difference between the CCG rate per 10,000 and the England national rate. Areas with low significance were found to have a significantly smaller number of patients on the palliative care register (crude rate per 10,000) than the England national average, based on the size of registered population for the area and total palliative care register count. Those with high significance were found to have a significantly higher number of patients on the palliative care register. Users should note that CCGs and practices with higher elderly populations will likely have a greater need/demand for palliative care.
A58: England | B58: 58383266 | C58: 225166 | D58: 38.56687291 | E58: - | F58: 37.89559225 | G58: 38.21759946
A59: All areas combined | B59: 1416289 | C59: 7794 | D59: 55.03114124 | E59: High | F59: 52.5405599 | G59: 55.02721287
A60: Chorley and South Ribble CCG | B60: 188203 | C60: 896 | D60: 47.60816778 | E60: High | F60: 44.58335373 | G60: 51.02682009
A61: East Lancashire CCG | B61: 381783 | C61: 1682 | D61: 44.05644044 | E61: High | F61: 33.30259505 | G61: 37.14186149
A62: Fylde & Wyre CCG | B62: 177376 | C62: 1364 | D62: 76.89879127 | E62: High | F62: 73.8356554 | G62: 82.934418
A63: Greater Preston CCG | B63: 209377 | C63: 754 | D63: 36.01159631 | E63: - | F63: 33.0044872 | G63: 38.2333943
A64: Morecambe Bay CCG | B64: 345853 | C64: 2585 | D64: 74.74 | E64: High | F64: 72.53005931 | G64: 78.22255235 | I64: Please note these are crude rate comparisons that do not take into account confounding factors such as population demographics (age/gender).
A65: West Lancashire CCG | B65: 113697 | C65: 513 | D65: 45.12 | E65: High | F65: 39.95528185 | G65: 48.02382837
B68: L2 | C68: U2 | D68: England | E68: Sig
B69: =D58-F58 -> 0.6712806643 | C69: =G58-D58 -> -0.3492734548 | D69: =$D$58 -> 38.56687291 | E69: -
B70: 2.490581344 | C70: -0.003928373004 | D70: =$D$58 -> 38.56687291 | E70: =IF(F59>$G$58,"High",IF(G59<$F$58,"Low","No diff")) -> High
B71: 3.024814046 | C71: 3.418652318 | D71: 38.56687291 | E71: High
B72: 10.75384539 | C72: -6.914578946 | D72: 38.56687291 | E72: Low
B73: 3.063135867 | C73: 6.035626733 | D73: 38.56687291 | E73: High
B74: 3.00710911 | C74: 2.22179799 | D74: 38.56687291 | E74: No diff
B75: 2.209940693 | C75: 3.482552352 | D75: 38.56687291 | E75: High
B76: 5.164718151 | C76: 2.90382837 | D76: 38.56687291 | E76: High
A94: Practice level QOF palliative register crude rate per 1,000 2016/17 and 2017/18
A98: Patients on the palliative care register, including crude rate per 1,000 and as a percentage of total GP practice list size, 2016/17 and 2017/18
A99: CCG name | B99: Practice code | C99: Practice name | D99: 2016/17 all ages on practice register | E99: 2017/18 all ages on practice register | F99: No. on 2016/17 palliative care register | G99: No. on 2017/18 palliative care register | H99: 2016/17 PC crude rate per 1,000 | I99: 2017/18 PC crude rate per 1,000 | J99: 2016/17 PC prevalence (per cent) | K99: 2017/18 PC prevalence (per cent)
A100: NHS CHORLEY AND SOUTH RIBBLE CCG | B100: P81010 | C100: WITHNELL HEALTH CENTRE | D100: 5272 | E100: 5321 | F100: 5 | G100: 14 | H100: 0.9484066768 | I100: 2.631084383 | J100: 0.09484066768 | K100: =G100/E100 -> 0.002631084383
A101: NHS CHORLEY AND SOUTH RIBBLE CCG | B101: P81033 | C101: COPPULL MEDICAL PRACTICE | D101: 8005 | E101: 8082 | F101: 79 | G101: 62 | H101: 9.86883198 | I101: 7.671368473 | J101: 0.986883198 | K101: =G101/E101 -> 0.007671368473
A102: NHS CHORLEY AND SOUTH RIBBLE CCG | B102: P81038 | C102: THE CHORLEY SURGERY | D102: 8680 | E102: 8906 | F102: 35 | G102: 36 | H102: 4.032258065 | I102: 4.042218729 | J102: 0.4032258065 | K102: =G102/E102 -> 0.004042218729
A103: NHS CHORLEY AND SOUTH RIBBLE CCG | B103: P81044 | C103: LIBRARY HOUSE SURGERY | D103: 16492 | E103: 16234 | F103: 62 | G103: 48 | H103: 3.759398496 | I103: 2.956757423 | J103: 0.3759398496 | K103: =G103/E103 -> 0.002956757423
A104: NHS CHORLEY AND SOUTH RIBBLE CCG | B104: P81057 | C104: WORDEN MEDICAL CENTRE | D104: 12514 | E104: 12446 | F104: 31 | G104: 38 | H104: 2.477225507 | I104: 3.05318978 | J104: 0.2477225507 | K104: =G104/E104 -> 0.00305318978
A105: NHS CHORLEY AND SOUTH RIBBLE CCG | B105: P81062 | C105: REGENT HOUSE SURGERY | D105: 8225 | E105: 8124 | F105: 6 | G105: 17 | H105: 0.7294832827 | I105: 2.092565239 | J105: 0.07294832827 | K105: =G105/E105 -> 0.002092565239
A106: NHS CHORLEY AND SOUTH RIBBLE CCG | B106: P81076 | C106: SANDY LANE SURGERY | D106: 11577 | E106: 11376 | F106: 50 | G106: 57 | H106: 4.31890818 | I106: 5.010548523 | J106: 0.431890818 | K106: =G106/E106 -> 0.005010548523
A107: NHS CHORLEY AND SOUTH RIBBLE CCG | B107: P81082 | C107: THE RYAN MEDICAL CENTRE | D107: 10422 | E107: 10426 | F107: 80 | G107: 77 | H107: 7.676069852 | I107: 7.385382697 | J107: 0.7676069852 | K107: =G107/E107 -> 0.007385382697
A108: NHS CHORLEY AND SOUTH RIBBLE CCG | B108: P81083 | C108: ROSLEA SURGERY | D108: 8490 | E108: 8460 | F108: 106 | G108: 97 | H108: 12.4852768 | I108: 11.46572104 | J108: 1.24852768 | K108: =G108/E108 -> 0.01146572104
A109: NHS CHORLEY AND SOUTH RIBBLE CCG | B109: P81117 | C109: CENTRAL PARK SURGERY | D109: 4330 | E109: 4404 | F109: 22 | G109: 20 | H109: 5.080831409 | I109: 4.541326067 | J109: 0.5080831409 | K109: =G109/E109 -> 0.004541326067
A110: NHS CHORLEY AND SOUTH RIBBLE CCG | B110: P81127 | C110: THE SURGERY CHORLEY | D110: 3819 | E110: 3845 | F110: 16 | G110: 6 | H110: 4.189578424 | I110: 1.56046814 | J110: 0.4189578424 | K110: =G110/E110 -> 0.00156046814
A111: NHS CHORLEY AND SOUTH RIBBLE CCG | B111: P81143 | C111: WHITTLE SURGERY | D111: 9511 | E111: 9768 | F111: 61 | G111: 69 | H111: 6.413626327 | I111: 7.063882064 | J111: 0.6413626327 | K111: =G111/E111 -> 0.007063882064
A112: NHS CHORLEY AND SOUTH RIBBLE CCG | B112: P81154 | C112: GRANVILLE HOUSE MED CTRE | D112: 8302 | E112: 8272 | F112: 30 | G112: 28 | H112: 3.613587087 | I112: 3.384912959 | J112: 0.3613587087 | K112: =G112/E112 -> 0.003384912959
A113: NHS CHORLEY AND SOUTH RIBBLE CCG | B113: P81171 | C113: THE EUXTON MEDICAL CENTRE | D113: 4249 | E113: 4262 | F113: 2 | G113: 13 | H113: 0.470698988 | I113: 3.050211168 | J113: 0.0470698988 | K113: =G113/E113 -> 0.003050211168
A114: NHS CHORLEY AND SOUTH RIBBLE CCG | B114: P81173 | C114: CROSTON MEDICAL CENTRE | D114: 3942 | E114: 3908 | F114: 15 | G114: 18 | H114: 3.805175038 | I114: 4.60593654 | J114: 0.3805175038 | K114: =G114/E114 -> 0.00460593654
A115: NHS CHORLEY AND SOUTH RIBBLE CCG | B115: P81180 | C115: CLAYTON BROOK SURGERY | D115: 3393 | E115: 3322 | F115: 19 | G115: 13 | H115: 5.59976422 | I115: 3.913305238 | J115: 0.559976422 | K115: =G115/E115 -> 0.003913305238
A116: NHS CHORLEY AND SOUTH RIBBLE CCG | B116: P81181 | C116: KINGSFOLD MEDICAL CENTRE | D116: 4164 | E116: 4216 | F116: 21 | G116: 15 | H116: 5.043227666 | I116: 3.557874763 | J116: 0.5043227666 | K116: =G116/E116 -> 0.003557874763
A117: NHS CHORLEY AND SOUTH RIBBLE CCG | B117: P81186 | C117: MOSS SIDE MEDICAL CENTRE | D117: 4420 | E117: 4423 | F117: 15 | G117: 39 | H117: 3.393665158 | I117: 8.817544653 | J117: 0.3393665158 | K117: =G117/E117 -> 0.008817544653
A118: NHS CHORLEY AND SOUTH RIBBLE CCG | B118: P81642 | C118: MEDICARE UNIT SURGERY | D118: 2689 | E118: 2595 | F118: 10 | G118: 15 | H118: 3.718854593 | I118: 5.780346821 | J118: 0.3718854593 | K118: =G118/E118 -> 0.005780346821
A119: NHS CHORLEY AND SOUTH RIBBLE CCG | B119: P81655 | C119: THE VILLAGE SURGERIES CROSTON&ECCLESTON | D119: 3309 | E119: 8182 | F119: 33 | G119: 63 | H119: 9.972801451 | I119: 7.699828893 | J119: 0.9972801451 | K119: =G119/E119 -> 0.007699828893
A120: NHS CHORLEY AND SOUTH RIBBLE CCG | B120: P81687 | C120: NEW LONGTON SURGERY | D120: 1681 | E120: 1681 | F120: 6 | G120: 14 | H120: 3.569303986 | I120: 8.328375967 | J120: 0.3569303986 | K120: =G120/E120 -> 0.008328375967
A121: NHS CHORLEY AND SOUTH RIBBLE CCG | B121: P81689 | C121: EAVES LANE SURGERY | D121: 2062 | E121: 2066 | F121: 9 | G121: 6 | H121: 4.364694471 | I121: 2.904162633 | J121: 0.4364694471 | K121: =G121/E121 -> 0.002904162633
A122: NHS CHORLEY AND SOUTH RIBBLE CCG | B122: P81692 | C122: BEECHES MEDICAL CENTRE | D122: 1810 | E122: 1951 | F122: 21 | G122: 18 | H122: 11.60220994 | I122: 9.226037929 | J122: 1.160220994 | K122: =G122/E122 -> 0.009226037929
A123: NHS CHORLEY AND SOUTH RIBBLE CCG | B123: P81701 | C123: PRESTON ROAD SURGERY | D123: 3243 | E123: 3348 | F123: 19 | G123: 24 | H123: 5.858772741 | I123: 7.168458781 | J123: 0.5858772741 | K123: =G123/E123 -> 0.007168458781
A124: NHS CHORLEY AND SOUTH RIBBLE CCG | B124: P81733 | C124: ECCLESTON HEALTH CENTRE | D124: 4682 | E124: 4771 | F124: 12 | G124: 0 | H124: 2.563007262 | I124: 0 | J124: 0.2563007262 | K124: =G124/E124 -> 0
A125: NHS CHORLEY AND SOUTH RIBBLE CCG | B125: P81740 | C125: ADLINGTON MEDICAL CENTRE | D125: 1799 | E125: 1892 | F125: 1 | G125: 6 | H125: 0.5558643691 | I125: 3.171247357 | J125: 0.05558643691 | K125: =G125/E125 -> 0.003171247357
A126: NHS CHORLEY AND SOUTH RIBBLE CCG | B126: P81741 | C126: STATION SURGERY | D126: 2669 | E126: 2740 | F126: 18 | G126: 23 | H126: 6.744098913 | I126: 8.394160584 | J126: 0.6744098913 | K126: =G126/E126 -> 0.008394160584
A127: NHS CHORLEY AND SOUTH RIBBLE CCG | B127: P81769 | C127: LOSTOCK HALL VILLAGE SURGERY | D127: 1435 | E127: 1579 | F127: 4 | G127: 5 | H127: 2.787456446 | I127: 3.166561115 | J127: 0.2787456446 | K127: =G127/E127 -> 0.003166561115
A128: NHS CHORLEY AND SOUTH RIBBLE CCG | B128: Y00347 | C128: DR R BAGHDJIAN SURGERY | D128: 5272 | E128: 5308 | F128: 25 | G128: 20 | H128: 4.742033384 | I128: 3.767897513 | J128: 0.4742033384 | K128: =G128/E128 -> 0.003767897513
A129: NHS CHORLEY AND SOUTH RIBBLE CCG | B129: Y02466 | C129: BUCKSHAW VILLAGE HEALTH CENTRE | D129: 10049 | E129: 10738 | F129: 29 | G129: 27 | H129: 2.885859289 | I129: 2.514434718 | J129: 0.2885859289 | K129: =G129/E129 -> 0.002514434718
A130: NHS CHORLEY AND SOUTH RIBBLE CCG | B130: Y03656 | C130: LEYLAND SURGERY | D130: 5424 | E130: 5557 | F130: 16 | G130: 8 | H130: 2.949852507 | I130: 1.439625697 | J130: 0.2949852507 | K130: =G130/E130 -> 0.001439625697
A131: NHS EAST LANCASHIRE CCG | B131: P81003 | C131: ST JAMES' MEDICAL CENTRE | D131: 10654 | E131: 10444 | F131: 34 | G131: 41 | H131: 3.191289656 | I131: 3.925698966 | J131: 0.3191289656 | K131: =G131/E131 -> 0.003925698966
A132: NHS EAST LANCASHIRE CCG | B132: P81008 | C132: YORKSHIRE STREET MEDICAL CENTRE | D132: 5895 | E132: 6014 | F132: 29 | G132: 31 | H132: 4.91942324 | I132: 5.154639175 | J132: 0.491942324 | K132: =G132/E132 -> 0.005154639175
A133: NHS EAST LANCASHIRE CCG | B133: P81017 | C133: WHALLEY MEDICAL CENTRE | D133: 12603 | E133: 12804 | F133: 19 | G133: 28 | H133: 1.507577561 | I133: 2.18681662 | J133: 0.1507577561 | K133: =G133/E133 -> 0.00218681662
A134: NHS EAST LANCASHIRE CCG | B134: P81020 | C134: ST. NICHOLAS GROUP PRACTICE | D134: 8989 | E134: 9026 | F134: 46 | G134: 46 | H134: 5.117365669 | I134: 5.096388212 | J134: 0.5117365669 | K134: =G134/E134 -> 0.005096388212
A135: NHS EAST LANCASHIRE CCG | B135: P81025 | C135: THE RICHMOND HILL PRACTICE | D135: 10466 | E135: 11627 | F135: 47 | G135: 73 | H135: 4.490731894 | I135: 6.278489722 | J135: 0.4490731894 | K135: =G135/E135 -> 0.006278489722
A136: NHS EAST LANCASHIRE CCG | B136: P81027 | C136: IRWELL MEDICAL PRACTICE | D136: 14234 | E136: 14450 | F136: 61 | G136: 59 | H136: 4.285513559 | I136: 4.083044983 | J136: 0.4285513559 | K136: =G136/E136 -> 0.004083044983
A137: NHS EAST LANCASHIRE CCG | B137: P81028 | C137: MANCHESTER ROAD SURGERY | D137: 4720 | E137: 4715 | F137: 5 | G137: 11 | H137: 1.059322034 | I137: 2.332979852 | J137: 0.1059322034 | K137: =G137/E137 -> 0.002332979852
A138: NHS EAST LANCASHIRE CCG | B138: P81032 | C138: REEDYFORD HLTH CARE GROUP | D138: 11341 | E138: 10880 | F138: 55 | G138: 48 | H138: 4.849660524 | I138: 4.411764706 | J138: 0.4849660524 | K138: =G138/E138 -> 0.004411764706
A139: NHS EAST LANCASHIRE CCG | B139: P81035 | C139: COLNE ROAD SURGERY | D139: 4305 | E139: 4179 | F139: 10 | G139: 15 | H139: 2.322880372 | I139: 3.589375449 | J139: 0.2322880372 | K139: =G139/E139 -> 0.003589375449
A140: NHS EAST LANCASHIRE CCG | B140: P81036 | C140: PEEL HOUSE MEDICAL PRACTICE | D140: 14937 | E140: 15003 | F140: 83 | G140: 92 | H140: 5.556671353 | I140: 6.132106912 | J140: 0.5556671353 | K140: =G140/E140 -> 0.006132106912
A141: NHS EAST LANCASHIRE CCG | B141: P81047 | C141: PARKSIDE SURGERY | D141: 10092 | E141: 10297 | F141: 72 | G141: 67 | H141: 7.134363853 | I141: 6.506749539 | J141: 0.7134363853 | K141: =G141/E141 -> 0.006506749539
A142: NHS EAST LANCASHIRE CCG | B142: P81053 | C142: BRIERCLIFFE SURGERY | D142: 7630 | E142: 7622 | F142: 19 | G142: 53 | H142: 2.49017038 | I142: 6.953555497 | J142: 0.249017038 | K142: =G142/E142 -> 0.006953555497
A143: NHS EAST LANCASHIRE CCG | B143: P81065 | C143: THE PENDLE MEDICAL PARTNERSHIP | D143: 11660 | E143: 11974 | F143: 38 | G143: 46 | H143: 3.259005146 | I143: 3.841656923 | J143: 0.3259005146 | K143: =G143/E143 -> 0.003841656923
A144: NHS EAST LANCASHIRE CCG | B144: P81069 | C144: PENDLESIDE MEDICAL PRACT | D144: 10190 | E144: 10509 | F144: 18 | G144: 26 | H144: 1.766437684 | I144: 2.474069845 | J144: 0.1766437684 | K144: =G144/E144 -> 0.002474069845
A145: NHS EAST LANCASHIRE CCG | B145: P81070 | C145: PENDLE VIEW MEDICAL CTRE | D145: 7249 | E145: 7406 | F145: 19 | G145: 23 | H145: 2.621051179 | I145: 3.105590062 | J145: 0.2621051179 | K145: =G145/E145 -> 0.003105590062
A146: NHS EAST LANCASHIRE CCG | B146: P81078 | C146: BARNOLDSWICK MED CTR | D146: 11608 | E146: 11623 | F146: 40 | G146: 41 | H146: 3.44589938 | I146: 3.5274886 | J146: 0.344589938 | K146: =G146/E146 -> 0.0035274886
A147: NHS EAST LANCASHIRE CCG | B147: P81088 | C147: WHITWORTH MEDICAL CENTRE | D147: 7201 | E147: 7264 | F147: 19 | G147: 24 | H147: 2.638522427 | I147: 3.303964758 | J147: 0.2638522427 | K147: =G147/E147 -> 0.003303964758
A148: NHS EAST LANCASHIRE CCG | B148: P81095 | C148: THURSBY SURGERY | D148: 7700 | E148: 7826 | F148: 12 | G148: 10 | H148: 1.558441558 | I148: 1.277791975 | J148: 0.1558441558 | K148: =G148/E148 -> 0.001277791975
A149: NHS EAST LANCASHIRE CCG | B149: P81099 | C149: DR THM MACKENZIE & PARTNERS | D149: 10214 | E149: 10367 | F149: 14 | G149: 31 | H149: 1.370667711 | I149: 2.990257548 | J149: 0.1370667711 | K149: =G149/E149 -> 0.002990257548
A150: NHS EAST LANCASHIRE CCG | B150: P81100 | C150: THE CASTLE MEDICAL GROUP | D150: 14524 | E150: 14481 | F150: 49 | G150: 66 | H150: 3.373726246 | I150: 4.557696292 | J150: 0.3373726246 | K150: =G150/E150 -> 0.004557696292
A151: NHS EAST LANCASHIRE CCG | B151: P81104 | C151: OXFORD ROAD MEDICAL CTRE | D151: 4515 | E151: 4645 | F151: 6 | G151: 14 | H151: 1.328903654 | I151: 3.013993541 | J151: 0.1328903654 | K151: =G151/E151 -> 0.003013993541
A152: NHS EAST LANCASHIRE CCG | B152: P81118 | C152: ILEX VIEW MEDICAL PRACTICE | D152: 7562 | E152: 7903 | F152: 24 | G152: 24 | H152: 3.173763555 | I152: 3.03682146 | J152: 0.3173763555 | K152: =G152/E152 -> 0.00303682146
A153: NHS EAST LANCASHIRE CCG | B153: P81123 | C153: ELMS FEDERATED PRACTICE | D153: 19623 | E153: 16557 | F153: 70 | G153: 167 | H153: 3.567242522 | I153: 10.0863683 | J153: 0.3567242522 | K153: =G153/E153 -> 0.0100863683
A154: NHS EAST LANCASHIRE CCG | B154: P81130 | C154: PADIHAM GROUP PRACTICE | D154: 12843 | E154: 12858 | F154: 25 | G154: 47 | H154: 1.946585689 | I154: 3.655311868 | J154: 0.1946585689 | K154: =G154/E154 -> 0.003655311868
A155: NHS EAST LANCASHIRE CCG | B155: P81132 | C155: DR DM DOHERTY & PARTNERS | D155: 9014 | E155: 9062 | F155: 42 | G155: 61 | H155: 4.659418682 | I155: 6.731405871 | J155: 0.4659418682 | K155: =G155/E155 -> 0.006731405871
A156: NHS EAST LANCASHIRE CCG | B156: P81134 | C156: KIDDROW MEDICAL PRACTICE | D156: 4080 | E156: 4145 | F156: 16 | G156: 14 | H156: 3.921568627 | I156: 3.377563329 | J156: 0.3921568627 | K156: =G156/E156 -> 0.003377563329
A157: NHS EAST LANCASHIRE CCG | B157: P81137 | C157: BURNLEY WOOD MEDICAL CENTRE | D157: 5878 | E157: 5901 | F157: 12 | G157: 15 | H157: 2.041510718 | I157: 2.541942044 | J157: 0.2041510718 | K157: =G157/E157 -> 0.002541942044
A158: NHS EAST LANCASHIRE CCG | B158: P81146 | C158: MYRTLE HOUSE | D158: 4925 | E158: 4829 | F158: 25 | G158: 26 | H158: 5.076142132 | I158: 5.384137503 | J158: 0.5076142132 | K158: =G158/E158 -> 0.005384137503
A159: NHS EAST LANCASHIRE CCG | B159: P81147 | C159: BLACKBURN RD MEDICAL CENTRE | D159: 3741 | E159: 3998 | F159: 19 | G159: 23 | H159: 5.078855921 | I159: 5.752876438 | J159: 0.5078855921 | K159: =G159/E159 -> 0.005752876438
A160: NHS EAST LANCASHIRE CCG | B160: P81160 | C160: OSWALD MEDICAL CENTRE | D160: 8976 | E160: 9891 | F160: 39 | G160: 34 | H160: 4.344919786 | I160: 3.437468406 | J160: 0.4344919786 | K160: =G160/E160 -> 0.003437468406
A161: NHS EAST LANCASHIRE CCG | B161: P81165 | C161: IGHTENHILL MEDICAL CENTRE | D161: 2239 | E161: 2309 | F161: 6 | G161: 14 | H161: 2.679767753 | I161: 6.063230836 | J161: 0.2679767753 | K161: =G161/E161 -> 0.006063230836
A162: NHS EAST LANCASHIRE CCG | B162: P81166 | C162: DR BELLO'S SURGERY | D162: 2475 | E162: 2536 | F162: 42 | G162: 51 | H162: 16.96969697 | I162: 20.11041009 | J162: 1.696969697 | K162: =G162/E162 -> 0.02011041009
A163: NHS EAST LANCASHIRE CCG | B163: P81170 | C163: DR MALIK & PARTNER | D163: 5742 | E163: 6390 | F163: 7 | G163: 5 | H163: 1.219087426 | I163: 0.7824726135 | J163: 0.1219087426 | K163: =G163/E163 -> 0.0007824726135
A164: NHS EAST LANCASHIRE CCG | B164: P81182 | C164: RICHMOND MEDICAL CENTRE | D164: 6039 | E164: 6006 | F164: 11 | G164: 33 | H164: 1.821493625 | I164: 5.494505495 | J164: 0.1821493625 | K164: =G164/E164 -> 0.005494505495
A165: NHS EAST LANCASHIRE CCG | B165: P81197 | C165: ROSEGROVE SURGERY | D165: 4470 | E165: 4489 | F165: 13 | G165: 14 | H165: 2.908277405 | I165: 3.118734685 | J165: 0.2908277405 | K165: =G165/E165 -> 0.003118734685
A166: NHS EAST LANCASHIRE CCG | B166: P81212 | C166: DR MOUJAES | D166: 4994 | E166: 4937 | F166: 8 | G166: 14 | H166: 1.601922307 | I166: 2.835730201 | J166: 0.1601922307 | K166: =G166/E166 -> 0.002835730201
A167: NHS EAST LANCASHIRE CCG | B167: P81215 | C167: ROSEHILL SURGERY | D167: 6302 | E167: 6547 | F167: 51 | G167: 48 | H167: 8.092668994 | I167: 7.331602261 | J167: 0.8092668994 | K167: =G167/E167 -> 0.007331602261
A168: NHS EAST LANCASHIRE CCG | B168: P81218 | C168: THE CLAYTON MEDICAL CTR. | D168: 6600 | E168: 6603 | F168: 23 | G168: 25 | H168: 3.484848485 | I168: 3.786157807 | J168: 0.3484848485 | K168: =G168/E168 -> 0.003786157807
A169: NHS EAST LANCASHIRE CCG | B169: P81620 | C169: SLAIDBURN HEALTH CENTRE | D169: 1053 | E169: 1101 | F169: 2 | G169: 3 | H169: 1.899335233 | I169: 2.72479564 | J169: 0.1899335233 | K169: =G169/E169 -> 0.00272479564
A170: NHS EAST LANCASHIRE CCG | B170: P81659 | C170: THE ROYLE | D170: 3918 | E170: 4044 | F170: 7 | G170: 5 | H170: 1.78662583 | I170: 1.236399604 | J170: 0.178662583 | K170: =G170/E170 -> 0.001236399604
A171: NHS EAST LANCASHIRE CCG | B171: P81686 | C171: ROSSENDALE VALLEY MEDICAL PRACTICE | D171: 2589 | E171: 2612 | F171: 4 | G171: 3 | H171: 1.544998069 | I171: 1.148545176 | J171: 0.1544998069 | K171: =G171/E171 -> 0.001148545176
A172: NHS EAST LANCASHIRE CCG | B172: P81699 | C172: HIGHER HEYS SURGERY | D172: 2292 | E172: 2274 | F172: 4 | G172: 1 | H172: 1.745200698 | I172: 0.4397537379 | J172: 0.1745200698 | K172: =G172/E172 -> 0.0004397537379
A173: NHS EAST LANCASHIRE CCG | B173: P81711 | C173: DILL HALL SURGERY | D173: 2578 | E173: 2621 | F173: 27 | G173: 37 | H173: 10.47323507 | I173: 14.11674933 | J173: 1.047323507 | K173: =G173/E173 -> 0.01411674933
A174: NHS EAST LANCASHIRE CCG | B174: P81726 | C174: KING STREET MEDICAL CTR | D174: 2081 | E174: 1986 | F174: 6 | G174: 16 | H174: 2.883229217 | I174: 8.056394763 | J174: 0.2883229217 | K174: =G174/E174 -> 0.008056394763
A175: NHS EAST LANCASHIRE CCG | B175: P81730 | C175: GREAT HARWOOD MEDICAL GROUP | D175: 8354 | E175: 8452 | F175: 22 | G175: 31 | H175: 2.633468997 | I175: 3.667770942 | J175: 0.2633468997 | K175: =G175/E175 -> 0.003667770942
A176: NHS EAST LANCASHIRE CCG | B176: P81731 | C176: DR JEHANGIR (SH) | D176: 2742 | E176: 2781 | F176: 6 | G176: 4 | H176: 2.188183807 | I176: 1.438331535 | J176: 0.2188183807 | K176: =G176/E176 -> 0.001438331535
A177: NHS EAST LANCASHIRE CCG | B177: P81732 | C177: HARAMBEE SURGERY | D177: 4125 | E177: 4146 | F177: 13 | G177: 12 | H177: 3.151515152 | I177: 2.894356006 | J177: 0.3151515152 | K177: =G177/E177 -> 0.002894356006
A178: NHS EAST LANCASHIRE CCG | B178: P81736 | C178: WHITEFIELD HEALTHCARE | D178: 3700 | E178: 3925 | F178: 8 | G178: 22 | H178: 2.162162162 | I178: 5.605095541 | J178: 0.2162162162 | K178: =G178/E178 -> 0.005605095541
A179: NHS EAST LANCASHIRE CCG | B179: P81738 | C179: RISHTON & GREAT HARWOOD SURGERY | D179: 1080 | E179: 1001 | F179: 2 | G179: 2 | H179: 1.851851852 | I179: 1.998001998 | J179: 0.1851851852 | K179: =G179/E179 -> 0.001998001998
A180: NHS EAST LANCASHIRE CCG | B180: P81749 | C180: ABBEY SURGERY | D180: 1494 | E180: 1604 | F180: 3 | G180: 11 | H180: 2.008032129 | I180: 6.857855362 | J180: 0.2008032129 | K180: =G180/E180 -> 0.006857855362
A181: NHS EAST LANCASHIRE CCG | B181: P81755 | C181: CABIN SURGERY | D181: 4489 | E181: 4521 | F181: 16 | G181: 22 | H181: 3.564268211 | I181: 4.866180049 | J181: 0.3564268211 | K181: =G181/E181 -> 0.004866180049
A182: NHS EAST LANCASHIRE CCG | B182: P81756 | C182: DANESHOUSE MEDICAL CENTRE | D182: 3293 | E182: 3215 | F182: 1 | G182: 1 | H182: 0.303674461 | I182: 0.3110419907 | J182: 0.0303674461 | K182: =G182/E182 -> 0.0003110419907
A183: NHS EAST LANCASHIRE CCG | B183: P81757 | C183: BARROWFORD SURGERY | D183: 3260 | E183: 3315 | F183: 18 | G183: 10 | H183: 5.521472393 | I183: 3.016591252 | J183: 0.5521472393 | K183: =G183/E183 -> 0.003016591252
A184: NHS EAST LANCASHIRE CCG | B184: P81778 | C184: DR A K JHA (SH) | D184: 2832 | E184: 3071 | F184: 8 | G184: 9 | H184: 2.824858757 | I184: 2.930641485 | J184: 0.2824858757 | K184: =G184/E184 -> 0.002930641485
A185: NHS EAST LANCASHIRE CCG | B185: P81780 | C185: RIVERSIDE FAMILY PRACTICE | D185: 4463 | E185: 4552 | F185: 24 | G185: 24 | H185: 5.377548734 | I185: 5.272407733 | J185: 0.5377548734 | K185: =G185/E185 -> 0.005272407733
A186: NHS EAST LANCASHIRE CCG | B186: Y02605 | C186: AVHAC REGISTERED PATIENTS | D186: 2564 | E186: 2564 | F186: 1 | G186: 3 | H186: 0.3900156006 | I186: 1.170046802 | J186: 0.03900156006 | K186: =G186/E186 -> 0.001170046802
A187: NHS EAST LANCASHIRE CCG | B187: Y02606 | C187: FAIRMORE MEDICAL PRACTICE | D187: 5712 | E187: 5881 | F187: 9 | G187: 6 | H187: 1.575630252 | I187: 1.020234654 | J187: 0.1575630252 | K187: =G187/E187 -> 0.001020234654
A188: NHS GREATER PRESTON CCG | B188: P81015 | C188: LYTHAM ROAD SURGERY | D188: 11110 | E188: 11289 | F188: 32 | G188: 33 | H188: 2.880288029 | I188: 2.923199575 | J188: 0.2880288029 | K188: =G188/E188 -> 0.002923199575
A189: NHS GREATER PRESTON CCG | B189: P81018 | C189: ST FILLAN'S MEDICAL CTRE | D189: 8895 | E189: 8784 | F189: 34 | G189: 28 | H189: 3.822372119 | I189: 3.187613843 | J189: 0.3822372119 | K189: =G189/E189 -> 0.003187613843
A190: NHS GREATER PRESTON CCG | B190: P81040 | C190: LONGTON HEALTH CENTRE | D190: 10690 | E190: 10516 | F190: 37 | G190: 57 | H190: 3.461178672 | I190: 5.420311906 | J190: 0.3461178672 | K190: =G190/E190 -> 0.005420311906
A191: NHS GREATER PRESTON CCG | B191: P81046 | C191: PARK VIEW SURGERY | D191: 5835 | E191: 6091 | F191: 17 | G191: 16 | H191: 2.913453299 | I191: 2.626826465 | J191: 0.2913453299 | K191: =G191/E191 -> 0.002626826465
A192: NHS GREATER PRESTON CCG | B192: P81055 | C192: BERRY LANE MEDICAL CENTRE | D192: 10237 | E192: 10640 | F192: 41 | G192: 40 | H192: 4.005079613 | I192: 3.759398496 | J192: 0.4005079613 | K192: =G192/E192 -> 0.003759398496
A193: NHS GREATER PRESTON CCG | B193: P81067 | C193: THE HEALTHCARE CENTRE | D193: 13414 | E193: 13393 | F193: 53 | G193: 45 | H193: 3.95109587 | I193: 3.35996416 | J193: 0.395109587 | K193: =G193/E193 -> 0.00335996416
A194: NHS GREATER PRESTON CCG | B194: P81071 | C194: THE NEW HALL LANE PRACTICE | D194: 6896 | E194: 6982 | F194: 14 | G194: 19 | H194: 2.030162413 | I194: 2.7212833 | J194: 0.2030162413 | K194: =G194/E194 -> 0.0027212833
A195: NHS GREATER PRESTON CCG | B195: P81093 | C195: THE GEOFFREY STREET SURGERY | D195: 1782 | E195: 1659 | F195: 1 | G195: 2 | H195: 0.5611672278 | I195: 1.205545509 | J195: 0.05611672278 | K195: =G195/E195 -> 0.001205545509
A196: NHS GREATER PRESTON CCG | B196: P81103 | C196: NORTH PRESTON MEDICAL PRACTICE | D196: 9632 | E196: 9841 | F196: 36 | G196: 39 | H196: 3.737541528 | I196: 3.963011889 | J196: 0.3737541528 | K196: =G196/E196 -> 0.003963011889
A197: NHS GREATER PRESTON CCG | B197: P81107 | C197: STONEBRIDGE SURGERY | D197: 7564 | E197: 7509 | F197: 41 | G197: 34 | H197: 5.42041248 | I197: 4.527899854 | J197: 0.542041248 | K197: =G197/E197 -> 0.004527899854
A198: NHS GREATER PRESTON CCG | B198: P81119 | C198: DOCLANDS MEDICAL CENTRE | D198: 6810 | E198: 6840 | F198: 57 | G198: 50 | H198: 8.370044053 | I198: 7.30994152 | J198: 0.8370044053 | K198: =G198/E198 -> 0.00730994152
A199: NHS GREATER PRESTON CCG | B199: P81152 | C199: THE SURGERY | D199: 8703 | E199: 12200 | F199: 18 | G199: 78 | H199: 2.068252327 | I199: 6.393442623 | J199: 0.2068252327 | K199: =G199/E199 -> 0.006393442623
A200: NHS GREATER PRESTON CCG | B200: P81169 | C200: FISHERGATE HILL SURGERY | D200: 6255 | E200: 6229 | F200: 24 | G200: 23 | H200: 3.836930456 | I200: 3.692406486 | J200: 0.3836930456 | K200: =G200/E200 -> 0.003692406486
A201: NHS GREATER PRESTON CCG | B201: P81179 | C201: LOSTOCK HALL MEDICAL CTR. | D201: 3806 | E201: 3814 | F201: 10 | G201: 12 | H201: 2.627430373 | I201: 3.146303094 | J201: 0.2627430373 | K201: =G201/E201 -> 0.003146303094
A202: NHS GREATER PRESTON CCG | B202: P81184 | C202: RIBBLETON MEDICAL CENTRE | D202: 8284 | E202: 8330 | F202: 14 | G202: 11 | H202: 1.690004829 | I202: 1.320528211 | J202: 0.1690004829 | K202: =G202/E202 -> 0.001320528211
A203: NHS GREATER PRESTON CCG | B203: P81185 | C203: RIVERSIDE MEDICAL CENTRE | D203: 11399 | E203: 11304 | F203: 77 | G203: 72 | H203: 6.754978507 | I203: 6.369426752 | J203: 0.6754978507 | K203: =G203/E203 -> 0.006369426752
A204: NHS GREATER PRESTON CCG | B204: P81196 | C204: ISSA MEDICAL CENTRE - PATEL | D204: 11693 | E204: 12475 | F204: 27 | G204: 34 | H204: 2.309073805 | I204: 2.725450902 | J204: 0.2309073805 | K204: =G204/E204 -> 0.002725450902
A205: NHS GREATER PRESTON CCG | B205: P81213 | C205: ST.MARY'S HEALTH CENTRE | D205: 17475 | E205: 18904 | F205: 29 | G205: 22 | H205: 1.659513591 | I205: 1.163774862 | J205: 0.1659513591 | K205: =G205/E205 -> 0.001163774862
A206: NHS GREATER PRESTON CCG | B206: P81647 | C206: DR JHA & DR YERRA SURGERY | D206: 1955 | E206: 2040 | F206: 7 | G206: 19 | H206: 3.58056266 | I206: 9.31372549 | J206: 0.358056266 | K206: =G206/E206 -> 0.00931372549
A207: NHS GREATER PRESTON CCG | B207: P81664 | C207: THE PARK MEDICAL PRACTICE | D207: 15719 | E207: 15894 | F207: 34 | G207: 45 | H207: 2.162987467 | I207: 2.831257078 | J207: 0.2162987467 | K207: =G207/E207 -> 0.002831257078
A208: NHS GREATER PRESTON CCG | B208: P81667 | C208: ST WALBURGE'S MEDICAL PRACTICE | D208: 1705 | E208: 3392 | F208: 21 | G208: 20 | H208: 12.31671554 | I208: 5.896226415 | J208: 1.231671554 | K208: =G208/E208 -> 0.005896226415
A209: NHS GREATER PRESTON CCG | B209: P81685 | C209: DR SZ SHAHID | D209: 2465 | E209: 2411 | F209: 1 | G209: 2 | H209: 0.4056795132 | I209: 0.8295313148 | J209: 0.04056795132 | K209: =G209/E209 -> 0.0008295313148
A210: NHS GREATER PRESTON CCG | B210: P81735 | C210: DR A HUSSAIN | D210: 3053 | E210: 3189 | F210: 9 | G210: 6 | H210: 2.947920079 | I210: 1.881467545 | J210: 0.2947920079 | K210: =G210/E210 -> 0.001881467545
A211: NHS GREATER PRESTON CCG | B211: P81748 | C211: BRIARWOOD MEDICAL CENTRE | D211: 5925 | E211: 6040 | F211: 28 | G211: 32 | H211: 4.725738397 | I211: 5.298013245 | J211: 0.4725738397 | K211: =G211/E211 -> 0.005298013245
A212: NHS GREATER PRESTON CCG | B212: P81750 | C212: FRENCHWOOD SURGERY | D212: 2006 | E212: 2042 | F212: 2 | G212: 2 | H212: 0.9970089731 | I212: 0.9794319295 | J212: 0.09970089731 | K212: =G212/E212 -> 0.0009794319295
A213: NHS GREATER PRESTON CCG | B213: P81763 | C213: DR HP CHAKRABARTI | D213: 1921 | E213: 1856 | F213: 2 | G213: 1 | H213: 1.041124414 | I213: 0.5387931034 | J213: 0.1041124414 | K213: =G213/E213 -> 0.0005387931034
A214: NHS GREATER PRESTON CCG | B214: P81770 | C214: AVENHAM LANE PRACTICE | D214: 3356 | E214: 3645 | F214: 0 | G214: 5 | H214: 0 | I214: 1.371742112 | J214: 0 | K214: =G214/E214 -> 0.001371742112
A215: NHS GREATER PRESTON CCG | B215: P81785 | C215: MEDICOM LTD | D215: 2122 | E215: 2068 | F215: 8 | G215: 7 | H215: 3.770028275 | I215: 3.384912959 | J215: 0.3770028275 | K215: =G215/E215 -> 0.003384912959
A216: NHS MORECAMBE BAY CCG | B216: A82003 | C216: ULVERSTON HEALTH CENTRE (MURRAY) | D216: 11055 | E216: 10884 | F216: 43 | G216: 34 | H216: 3.889642696 | I216: 3.123851525 | J216: 0.3889642696 | K216: =G216/E216 -> 0.003123851525
A217: NHS MORECAMBE BAY CCG | B217: A82005 | C217: AMBLESIDE HEALTH CENTRE | D217: 6332 | E217: 6363 | F217: 68 | G217: 51 | H217: 10.73910297 | I217: 8.015087223 | J217: 1.073910297 | K217: =G217/E217 -> 0.008015087223
A218: NHS MORECAMBE BAY CCG | B218: A82007 | C218: DUKE STREET SURGERY | D218: 9535 | E218: 9532 | F218: 37 | G218: 40 | H218: 3.880440482 | I218: 4.196391104 | J218: 0.3880440482 | K218: =G218/E218 -> 0.004196391104
A219: NHS MORECAMBE BAY CCG | B219: A82008 | C219: NORWOOD MEDICAL CENTRE | D219: 10954 | E219: 10964 | F219: 96 | G219: 103 | H219: 8.763921855 | I219: 9.394381613 | J219: 0.8763921855 | K219: =G219/E219 -> 0.009394381613
A220: NHS MORECAMBE BAY CCG | B220: A82009 | C220: BRIDGEGATE MEDICAL CENTRE | D220: 8947 | E220: 8950 | F220: 62 | G220: 55 | H220: 6.929697105 | I220: 6.145251397 | J220: 0.6929697105 | K220: =G220/E220 -> 0.006145251397
A221: NHS MORECAMBE BAY CCG | B221: A82010 | C221: ABBEY ROAD SURGERY | D221: 6665 | E221: 6715 | F221: 59 | G221: 80 | H221: 8.852213053 | I221: 11.91362621 | J221: 0.8852213053 | K221: =G221/E221 -> 0.01191362621
A222: NHS MORECAMBE BAY CCG | B222: A82025 | C222: CAPTAIN FRENCH SURGERY | D222: 9760 | E222: 9959 | F222: 51 | G222: 49 | H222: 5.225409836 | I222: 4.920172708 | J222: 0.5225409836 | K222: =G222/E222 -> 0.004920172708
A223: NHS MORECAMBE BAY CCG | B223: A82026 | C223: THE JAMES COCHRANE PRACT. | D223: 17022 | E223: 17318 | F223: 119 | G223: 116 | H223: 6.990952885 | I223: 6.698233052 | J223: 0.6990952885 | K223: =G223/E223 -> 0.006698233052
A224: NHS MORECAMBE BAY CCG | B224: A82027 | C224: STATION HOUSE SURGERY | D224: 10366 | E224: 10256 | F224: 109 | G224: 101 | H224: 10.51514567 | I224: 9.847893916 | J224: 1.051514567 | K224: =G224/E224 -> 0.009847893916
A225: NHS MORECAMBE BAY CCG | B225: A82030 | C225: LUNESDALE SURGERY | D225: 5981 | E225: 6018 | F225: 15 | G225: 12 | H225: 2.507941816 | I225: 1.994017946 | J225: 0.2507941816 | K225: =G225/E225 -> 0.001994017946
A226: NHS MORECAMBE BAY CCG | B226: A82033 | C226: WATERLOO HOUSE SURGERY | D226: 8365 | E226: 8312 | F226: 58 | G226: 56 | H226: 6.933652122 | I226: 6.737247353 | J226: 0.6933652122 | K226: =G226/E226 -> 0.006737247353
A227: NHS MORECAMBE BAY CCG | B227: A82034 | C227: STONELEIGH SURGERY | D227: 6593 | E227: 6546 | F227: 47 | G227: 50 | H227: 7.128772941 | I227: 7.638252368 | J227: 0.7128772941 | K227: =G227/E227 -> 0.007638252368
A228: NHS MORECAMBE BAY CCG | B228: A82039 | C228: DALTON SURGERY | D228: 8543 | E228: 8628 | F228: 50 | G228: 67 | H228: 5.852744937 | I228: 7.765414928 | J228: 0.5852744937 | K228: =G228/E228 -> 0.007765414928
A229: NHS MORECAMBE BAY CCG | B229: A82046 | C229: WINDERMERE HEALTH CENTRE | D229: 5783 | E229: 5848 | F229: 35 | G229: 40 | H229: 6.05222203 | I229: 6.83994528 | J229: 0.605222203 | K229: =G229/E229 -> 0.00683994528
A230: NHS MORECAMBE BAY CCG | B230: A82053 | C230: NUTWOOD MEDICAL PRACTICE | D230: 4788 | E230: 4839 | F230: 44 | G230: 68 | H230: 9.189640769 | I230: 14.05249018 | J230: 0.9189640769 | K230: =G230/E230 -> 0.01405249018
A231: NHS MORECAMBE BAY CCG | B231: A82062 | C231: ATKINSON HEALTH CENTRE | D231: 4721 | E231: 4729 | F231: 39 | G231: 44 | H231: 8.260961661 | I231: 9.304292662 | J231: 0.8260961661 | K231: =G231/E231 -> 0.009304292662
A232: NHS MORECAMBE BAY CCG | B232: A82065 | C232: PENINSULA MEDICAL PRACTICE | D232: 2945 | E232: 2959 | F232: 22 | G232: 20 | H232: 7.470288625 | I232: 6.759040216 | J232: 0.7470288625 | K232: =G232/E232 -> 0.006759040216
A233: NHS MORECAMBE BAY CCG | B233: A82068 | C233: ULVERSTON COMMUNITY HEALTH CENTRE | D233: 4258 | E233: 4332 | F233: 27 | G233: 31 | H233: 6.341005167 | I233: 7.156048015 | J233: 0.6341005167 | K233: =G233/E233 -> 0.007156048015
A234: NHS MORECAMBE BAY CCG | B234: A82070 | C234: ST.MARY'S SURGERY | D234: 6115 | E234: 6127 | F234: 45 | G234: 31 | H234: 7.358953393 | I234: 5.059572385 | J234: 0.7358953393 | K234: =G234/E234 -> 0.005059572385
A235: NHS MORECAMBE BAY CCG | B235: A82071 | C235: BURNETT EDGAR MEDICAL CTR | D235: 4263 | E235: 4272 | F235: 53 | G235: 40 | H235: 12.43255923 | I235: 9.36329588 | J235: 1.243255923 | K235: =G235/E235 -> 0.00936329588
A236: NHS MORECAMBE BAY CCG | B236: A82072 | C236: RISEDALE SURGERY | D236: 6868 | E236: 6837 | F236: 51 | G236: 57 | H236: 7.425742574 | I236: 8.336989908 | J236: 0.7425742574 | K236: =G236/E236 -> 0.008336989908
A237: NHS MORECAMBE BAY CCG | B237: A82074 | C237: ARNSIDE SURGERY | D237: 2276 | E237: 2274 | F237: 18 | G237: 21 | H237: 7.908611599 | I237: 9.234828496 | J237: 0.7908611599 | K237: =G237/E237 -> 0.009234828496
A238: NHS MORECAMBE BAY CCG | B238: A82077 | C238: LIVERPOOL HOUSE SURGERY | D238: 5262 | E238: 5228 | F238: 70 | G238: 89 | H238: 13.30292664 | I238: 17.02371844 | J238: 1.330292664 | K238: =G238/E238 -> 0.01702371844
A239: NHS MORECAMBE BAY CCG | B239: A82608 | C239: SEDBERGH MEDICAL PRACTICE | D239: 4170 | E239: 4197 | F239: 15 | G239: 13 | H239: 3.597122302 | I239: 3.09745056 | J239: 0.3597122302 | K239: =G239/E239 -> 0.00309745056
A240: NHS MORECAMBE BAY CCG | B240: A82613 | C240: WRAYSDALE HOUSE SURGERY | D240: 969 | E240: 1002 | F240: 2 | G240: 1 | H240: 2.063983488 | I240: 0.998003992 | J240: 0.2063983488 | K240: =G240/E240 -> 0.000998003992
A241: NHS MORECAMBE BAY CCG | B241: A82621 | C241: ASKAM SURGERY | D241: 1640 | E241: 1617 | F241: 1 | G241: 3 | H241: 0.6097560976 | I241: 1.85528757 | J241: 0.06097560976 | K241: =G241/E241 -> 0.00185528757
A242: NHS MORECAMBE BAY CCG | B242: A82629 | C242: THE FAMILY PRACTICE | D242: 3586 | E242: 3438 | F242: 51 | G242: 55 | H242: 14.22197434 | I242: 15.99767307 | J242: 1.422197434 | K242: =G242/E242 -> 0.01599767307
A243: NHS MORECAMBE BAY CCG | B243: A82647 | C243: CARTMEL SURGERY | D243: 2512 | E243: 2601 | F243: 41 | G243: 40 | H243: 16.32165605 | I243: 15.3787005 | J243: 1.632165605 | K243: =G243/E243 -> 0.0153787005
A244: NHS MORECAMBE BAY CCG | B244: A82650 | C244: HAVERTHWAITE SURGERY | D244: 2745 | E244: 2756 | F244: 8 | G244: 8 | H244: 2.9143898 | I244: 2.90275762 | J244: 0.29143898 | K244: =G244/E244 -> 0.00290275762
A245: NHS MORECAMBE BAY CCG | B245: A82651 | C245: DUDDON VALLEY MEDICAL PRACTICE | D245: 3353 | E245: 3320 | F245: 24 | G245: 24 | H245: 7.157769162 | I245: 7.228915663 | J245: 0.7157769162 | K245: =G245/E245 -> 0.007228915663
A246: NHS MORECAMBE BAY CCG | B246: B82061 | C246: BENTHAM MEDICAL PRACTICE | D246: 7211 | E246: 7191 | F246: 73 | G246: 63 | H246: 10.12342255 | I246: 8.760951189 | J246: 1.012342255 | K246: =G246/E246 -> 0.008760951189
A247: NHS MORECAMBE BAY CCG | B247: P81002 | C247: LANCASTER MEDICAL PRACTICE | D247: 13069 | E247: 55505 | F247: 127 | G247: 366 | H247: 9.71765246 | I247: 6.59400054 | J247: 0.971765246 | K247: =G247/E247 -> 0.00659400054
A248: NHS MORECAMBE BAY CCG | B248: P81013 | C248: QUEEN SQUARE MEDICAL PRACTICE | D248: 14040 | E248: 14314 | F248: 72 | G248: 68 | H248: 5.128205128 | I248: 4.750593824 | J248: 0.5128205128 | K248: =G248/E248 -> 0.004750593824
A249: NHS MORECAMBE BAY CCG | B249: P81029 | C249: ASH TREES SURGERY | D249: 15061 | E249: 14985 | F249: 196 | G249: 187 | H249: 13.01374411 | I249: 12.47914581 | J249: 1.301374411 | K249: =G249/E249 -> 0.01247914581
A250: NHS MORECAMBE BAY CCG | B250: P81113 | C250: PARK VIEW SURGERY | D250: 6055 | E250: 6097 | F250: 50 | G250: 51 | H250: 8.257638315 | I250: 8.364769559 | J250: 0.8257638315 | K250: =G250/E250 -> 0.008364769559
A251: NHS MORECAMBE BAY CCG | B251: Y01008 | C251: BAY MEDICAL GROUP | D251: 54116 | E251: 60940 | F251: 415 | G251: 451 | H251: 7.668711656 | I251: 7.400722022 | J251: 0.7668711656 | K251: =G251/E251 -> 0.007400722022
A252: NHS WEST LANCASHIRE CCG | B252: P81014 | C252: ORMSKIRK MEDICAL PRACTICE | D252: 8781 | E252: 8728 | F252: 44 | G252: 60 | H252: 5.010818813 | I252: 6.874427131 | J252: 0.5010818813 | K252: =G252/E252 -> 0.006874427131
... 38 more rows

Sheet Sheet4 (hidden)
A1: NHS Chorley and South Ribble CCG
A2: NHS East Lancashire CCG
A3: NHS Fylde & Wyre CCG
A4: NHS Greater Preston CCG
A5: NHS Morecambe Bay CCG
A6: NHS West Lancashire CCG
